Workbook

Sheet Cover Page
D1: Add company logo
N2: Version 20.6
B8: Add photo
N13: Notes:
N14: This template may require adjustments by individual operators to meet specific reporting requirements as defined in the site Permit(s)
B29: Annual Performance Report 2021
B31: Permit EPR/BR4551IC
B33: Kent Enviropower Limited
B35: Allington Incinerator, Allington Quarry
B37: Kent Enviropower Limited
B39: Year: | C39: 2021
B41: Address: | C41: Laverstoke Road, Allington, Maidstone, Kent. ME16 0LE
B43: Tel: | C43: 0844 736 9990
B45: Email:
B47: Prepared by: | C47: Trevor Ellis | F47: Position: | G47: Environment Manager
B49: Approved by: | C49: Tony Stanbridge | F49: Position: | G49: General Manager
B51: Version: | C51: 1
B53: Issue Date: | C53: 31st January 2022

Sheet Contents
A1: =+'Cover Page'!$B$29 -> Annual Performance Report 2021 | E1: =+'Cover Page'!$B$33 -> Kent Enviropower Limited
A3: Contents | K3: Notes:
A4: Section | B4: Subject | H4: Page | K4: Section references and Page nos. to be inserted
B5: Facility Information | K5: Sections and Subjects may require adjustment by individual operators to meet specific reporting requirements as defined in the sites Permit(s)
B6: Operational Summary
B7: Operational Data
B8: Performance Form 1
B9: Energy Form 1
B10: Permit Compliance
B11: Improvements
B12: Public Liasion
B13: Residue Quality - Optional
B14: Emissions to Water
B15: Emissions to Air (periodically monitored)
B16: Emissions to Air (continuously monitored)
B17: Hydrogen Chloride emissions
B18: Sulphur Dioxdie emsissions
B19: Oxides of Notrigen emissions
B20: Total Organic Carbon emissions
B21: Particulate Matter emissions
B22: Carbon Monoxide emissions
B23: Ammonia emissions
A26: Version Control
A27: Section | B27: Information | H27: Date
A34: Distribution
A35: Copy | B35: Name, Role | H35: No.
A44: This report is required under the Industrial Emissions Directive’s Article 55(2) requirements on reporting and public information on waste incineration plants and co-incineration plants, which require the operator to produce an annual report on the functioning and monitoring of the plant and make it available to the public.

Sheet Facility Info
A1: =+'Cover Page'!$B$29 -> Annual Performance Report 2021 | E1: =+'Cover Page'!$B$33 -> Kent Enviropower Limited
A3: Plant Description and Design | K3: Notes:
A5: Installation Description The Installation receives non hazardous municipal and industrial waste, recovers recyclable elements for reuse and eliminates the combustible element of the residue by burning in a fluidised bed furnace. Energy is recovered from the process and converted to electricity in place of non-renewable fossil fuels. The combustion gases are cleaned to meet the standards required by the Directive before discharge from a tall chimney. Ashes and other solid residues are removed from the installation. The Installation covers the site and the entire EfW plant including all EfW lines, waste reception, storage, on-site pre-treatment facilities, water, fuel and air supply systems, boiler, facilities for the treatment of exhaust gases, on-site facilities for treatment or storage of residues and waste water, stack, devices and systems for controlling combustion operations, recording and monitoring conditions. The Installation has a design throughput of approx 580,000 tonnes per annum with an EfW capacity approx 560,000 tonnes per annum. The transfer loading station receives food waste and clean source separated recyclables which it reloads for onward transport and recovery. There is a single waste reception followed by three independent waste treatment lines each complete with a heat recovery boiler, acid gas abatement, bag filter and a separate flue in the chimney. The heat produced from the combustion of the waste is used to generate steam in the boilers and the steam is then combined and passed to a steam turbine which generates approx 34.5 MW of electrical energy for export to the National Grid. | K5: Include summary of plant design, design capacity, no. of combustion lines, electrical and heat capacity and any other general information that descibes the facility, its location and purpose
A20: Summary of Operational Processes and Procedures
A22: Raw Materials Waste is delivered to the plant in road vehicles which are weighed before proceeding to the tipping hall. This is a fully enclosed building, maintained under slight negative pressure to ensure that no odours, dust or litter can escape the building. The vehicles carry either unsorted mixed municipal waste, sorted waste for recycling or mixed recyclable waste and non recyclable waste and each tip into the appropriate section of the tipping hall. The unsorted mixed waste (black bag) is transferred by crane grab to a waste shredding line, it then moves forward through a metals extraction section where ferrous metals are removed for recycling before moving to the prepared fuel bunker. The facility also operates as a waste transfer site. It receives clean mixed recyclates and food wastes collected in the community and loads them in bulk onto their designated transport vehicles for transport off site for recovery. A crane grab in the prepared fuel bunker both mixes the waste and charges the hoppers of the three incineration lines. Hydrated lime for the flue gas cleaning process is delivered by bulk tanker and offloaded pneumatically into three 125m3 silos vented through a reverse pulse jet filter. Activated carbon for the flue gas cleaning process is stored in dedicated silos that are pneumatically filled from delivery trucks. There are three silos, one for each line, each equipped with filters to prevent dust emissions during filling. Urea, dissolved in water is stored in a fully bunded tank and is injected into the furnaces as necessary to control NOx emissions. Caustic soda for water treatment resin regeneration is delivered by bulk tanker and offloaded into a 5.5 m3 tank with scrubber, inside the demineralisation area. Hydrochloric acid for water treatment resin regeneration is delivered by bulk tanker and offloaded into a 5.5 m3 tank vented through the caustic soda scrubber in a bund outside the demineralisation area. Various other water treatment chemicals are delivered in appropriate containers and stored in bunded areas. Gas oil for the combustion chamber burners and on-site vehicles is stored in a fully bunded 150 m3 tank. Sand for the fluidised bed furnaces is stored in 3 silos each of 55 cubic meters capacity. Various maintenance materials (oils, greases, insulants, antifreezes, welding and fire fighting gases etc.) are stored in the appropriate manner. Combustion Process:- The technology employed for incineration is the ROWITEC unit which uses a fluidised bed process. The design has an inclined air distributor plate with a number of separate air supply chambers providing differential air flows across the bed, causing a revolving action. This technique promotes rapid and uniform mixing of the sand and bottom ash and ensures that heavy inert and non-combustible material migrates to the sides of the bed where they can easily be removed. An angled furnace wall above the fluidised bed zone restrains bed expansion under high fluidising air flows and so minimises particulate carry over. The elliptical patterns of air flow converge in the centre of the combustion area ensuring effective vertical and lateral turbulent mixing and high combustion efficiency and uniformity. The waste is burned on a bed consisting of sand and ash that is held in suspension by an upward flow of combustion air that circulates the combustion mixture up to the throat of the furnace. The furnace operating design is based on a thermal capacity of 53.8MW at full load and this can be achieved over the typical range of waste calorific values expected with municipal waste. The combustion air system provides the furnace with the total air requirements for fluidisation and combustion. Primary air is supplied to the bottom of the combustion chamber and fluidises the bed. This air is extracted from the waste reception and storage buildings and destroys all odours in the combustion chamber. Each furnace is equipped with two fuel oil burners for use at start-up to heat the furnace and also during extreme reductions in waste fuel calorific value when the temperature of the furnace would otherwise fall below 850 degrees Centigrade. Combustion control of the furnace will be achieved through a combination of furnace bed and freeboard temperature control, primary air flow control, oxygen control within the flue gas and furnace load. Recirculated flue gas is fed to the furnace bed as a cooling medium to control the furnace bed temperature and also to assist the control of NOx by influencing the combustion temperature conditions within the furnace. The furnace bed is managed to remove non-combustible material (bottom ash) from the bed and maintain the sand level within the optimum operating range. Bottom ashes produced in the furnace together with sand migrate down the slope of the furnace to the discharge section located at each side of the bed. The bottom ash and sand are both withdrawn from the discharge sections of the bed by two water-cooled discharge screw conveyors. Material passing out of the screw conveyors is discharged to a vibrating screen. Undersize material is returned to the sand hopper for re-use within the furnace while the oversized material is sent off site for recovery or re-use or landfill. | K22: Include summary of key processes and procedures such as (but not limited to); waste reception, control rooms, grate, bed and bolier, energy & heat generation, cooling systems, residue management, emission controls, health and safety systems, maintenance
A56: Energy Recovery Hot gases from the furnace pass through to a boiler designed to generate steam. The boiler comprises two fully water cooled radiation chambers, a single pass horizontal plain tube convective heating surface, incorporating a three stage convective superheater unit and a plain tube economiser section. The economiser is designed for high velocity gas flow to minimise the reformation of dioxins in the critical de Novo synthesis range. Steam is generated at 65 bar and a final temperature of 420 degrees Centigrade. The high pressure steam from all three boilers feeds into a common header which in turn will feed a condensing steam turbine that will generate electricity. Steam exiting the turbine will be condensed in an air cooled condenser and the condensate returned to the boilers. Gas Cleaning The plant is designed to meet the requirements of the Industrial Emissions Directive as a minimum for releases to air by a combination of main process design and operation and abatement equipment. Flue gases pass from the boiler to the gas cleaning equipment. The gas passes to an electrostatic precipitator (ESP) for the separation of ash carried over from the furnace with the flue gas. Material collected in the ESP will be discharged by means of rotary valves and chain conveyors and then pneumatically fed to the ash silos or re-injected into the flue gas cleaning system. Gases leaving the ESP enter the gas cleaning system. This comprises a circo clean reactor and bag filter system. Gases entering the circo clean reactor will be at a temperature of 190 to 230 degrees C and will come into contact with a mixture of water, hydrated lime and activated carbon that have been injected into the reactor. The reactor is designed to reduce or remove acidic pollutants such as HCl, SO2 and HF by the use of the hydrated lime and dioxins and furans, PCBs, PAHs, mercury vapour and heavy metal salts such as mercury chloride by the use of the activated carbon. The injected water enhances the reactions and cools the gas. The control system of the circo clean reactor optimises the use of reactants by balancing the feed rate with the concentration of the pollutants entering the circo clean reactor. The final stage of the gas cleaning system is the bag filter unit which separates the particulate material from the flue gas. The baghouse filter consists of compartments each of which contains a number of tubular filter bags. A thick porous layer of particulate builds on the bag surfaces to form a filter cake which efficiently removes ultra fine particles from the gas stream and the excess lime continues to react with the acid gases. Bag house residue is discharged from the compartments via the integrated buffer storage by a closed pneumatic conveying system into the reaction product silos. Silos are equipped with a filter, hopper heating and fluidisation system to assist discharge. The residue is then discharged directly into road vehicles under dust free conditions for transport off site to a licensed facility. Nitrogen oxides (NOx) abatement is achieved by the use of both flue gas recirculation (FGR) and selective non-catalytic reduction (SNCR). The SNCR is based on the injection of urea into the furnace chambers before the boilers and before the lime and carbon injection and before the gas passes to bag filters. The cleaned gas then discharges to atmosphere via three 80-metre flues in a common stack at an efflux velocity in excess of 15 ms-1 at maximum throughput. Ancillary Operations Demineralised water is required to compensate for boiler blowdown losses. A package demineralisation plant provides this water. The ion exchange resins are regenerated using sodium hydroxide and hydrochloric acid and the regeneration effluent is routed through a neutralisation tank to the collection pit for reuse where possible. Ash Handling Bottom ash, the combined boiler and ESP ash and the flue gas treatment residue (FGTR) from the bag filter system, are each sent for separate disposal off site by licensed contractors subject to waste licensing legislation. FGTR is not mixed with any other ash at any time. The bottom ash is likely to be subject to ferrous and non ferrous metals extraction by the contractors before disposal or reuse. All operations will be subject to waste licensing legislation and be tracked by the Environment Agency. At least quarterly sampling of the bottom ash will be carried out to ensure effective burn out is being achieved by testing for the “loss on ignition” of the residual ash. All other solid waste residues arising from the operation of the process will be removed from site, in enclosed containers, for disposal by suitable contractors. Liquid Effluent and Site Drainage Uncontaminated surface water from the roads and parking area that is not reused within the process will be discharged to sewer.
A89: Emissions Monitoring Emissions from the stack are continuously monitored for: particulate, carbon monoxide (CO), ammonia (NH3), sulphur dioxide (SO2), hydrogen chloride (HCl), oxygen (O2), nitrogen oxides (NOx) and volatile organic compounds (VOC). In addition periodic sampling and measurement will be carried out for metals cadmium (Cd), thallium (Tl), mercury (Hg), antimony (Sb), arsenic (As), lead (Pb), chromium (Cr), cobalt (Co), copper (Cu), manganese (Mn), nickel (Ni), vanadium (V), dioxins and furans, dioxin like PCBs, hydrogen fluoride (HF) and nitrous oxide (N2O). Periodic measurements will be carried out four times in the first year and thereafter either at the same frequency or twice per year dependant on the substances.

Sheet Operational Data
A1: =+'Cover Page'!$B$29 -> Annual Performance Report 2021 | E1: =+'Cover Page'!$B$33 -> Kent Enviropower Limited
A3: Operational Data | K3: Notes:
A4: Plant Size | B4: 560000 | D4: tonnes pa | E4: 41670 | F4: MWth | G4: 376680 | H4: MWe | K4: * - RDF to include SRF
A5: No. of combustion lines | B5: 3 | D5: No. of Turbines: | F5: 1 | K5: ** - CHP plants only
K6: 2020 updates include; heat in MWh, water in Litres, NCV in MJ/kg
A7: Waste types received | B7: Unit | C7: Q1 | D7: Q2 | E7: Q3 | F7: Q4 | G7: Year Total | H7: %
A8: Household / Local Authority | B8: tonnes | C8: 87234.16 | D8: 88701.47 | E8: 87545.24 | F8: 80098.58 | G8: =SUM(C8:F8) -> 343579.45 | H8: =IF(G8>0,G8/$G$18,"-") -> 0.7195386577 | K8: Availabiity Definition: 'the availability of a line is to be calculated by the number of hours the line reported Continuously Monitored emission levels to the Regulator through the calendar year divided by the total number of hours in that year. The overall plant availability is calculated as the Mean of all lines in the plant. For clarity this includes periods of Other Than Normal Operating Conditions (OTNOC) and abnormal operation.' Rationale: The primary function of an Energy from Waste facility is the disposal of waste. It follows therefore that the availability of a plant is determined by the period of time a facility spends undertaking this activity.
A9: Commercial & Industrial | C9: 30444.69 | D9: 33135.34 | E9: 28399.94 | F9: 36956.32 | G9: =SUM(C9:F9) -> 128936.29 | H9: 0.2700238476
A10: Hazardous | C10: 0 | D10: 0 | E10: 0 | F10: 0 | G10: 0 | H10: -
A11: Clinical | C11: 0 | D11: 0 | E11: 0 | F11: 0 | G11: 0 | H11: -
A12: Waste wood (biomass) | C12: 0 | D12: 0 | E12: 0 | F12: 0 | G12: 0 | H12: -
A13: Refuse Derived Fuel * - H'hold/LA | C13: 0 | D13: 0 | E13: 0 | F13: 0 | G13: =SUM(C13:F13) -> 0 | H13: -
A14: Refuse Derived Fuel * - C&I | C14: 0 | D14: 0 | E14: 0 | F14: 0 | G14: 0 | H14: -
A15: Food waste | C15: 1301.22 | D15: 1217.7 | E15: 1223.86 | F15: 1241.12 | G15: 4983.9 | H15: 0.01043749478
A16: Recylates waste | C16: 5810.06 | D16: 5722.08 | E16: 5018.94 | F16: 5172.16
A17: Card/Paper | C17: 686.66 | D17: 485 | E17: 393.1 | F17: 565
A18: Total waste received | C18: =SUM(C8:C17) -> 125476.79 | D18: =SUM(D8:D17) -> 129261.59 | E18: =SUM(E8:E17) -> 122581.08 | F18: =SUM(F8:F17) -> 124033.18 | G18: =SUM(G8:G17) -> 477499.64 | H18: 1
A19: Rejected Waste | C19: 7.26 | D19: 6.14 | E19: 4.18 | F19: 63.78 | G19: =SUM(C19:F19) -> 81.36 | H19: =IF(G19>0,G19/$G$18,"-") -> 0.000170387563
A20: Unprocessed waste transferred out | C20: 7797.94 | D20: 7424.78 | E20: 6635.9 | F20: 6978.28 | G20: =SUM(C20:F20) -> 28836.9 | H20: =IF(G20>0,G20/$G$18,"-") -> 0.06039145914
A21: Total waste combusted | C21: =C18-SUM(C19:C20) -> 117671.59 | D21: =D18-SUM(D19:D20) -> 121830.67 | E21: 115941 | F21: =F18-SUM(F19:F20) -> 116991.12 | G21: =SUM(C21:F21) -> 472434.38 | H21: =IF(G21>0,G21/$G$18,"-") -> 0.9893921177
A23: Energy Useage / Export | B23: Unit | C23: Q1 | D23: Q2 | E23: Q3 | F23: Q4 | G23: Year Total | H23: KWh/te
A24: Power Generated | B24: MWh | C24: 60018.1 | D24: 62762.85 | E24: 54432.07 | F24: 62900.5 | G24: =SUM(C24:F24) -> 240113.52 | H24: =IF(G24>0,G24*1000/$G$21,"-") -> 508.2473464
A25: Power Exported | C25: 45172 | D25: 47298 | E25: 39697 | F25: 47590 | G25: =SUM(C25:F25) -> 179757 | H25: =IF(G25>0,G25*1000/$G$21,"-") -> 380.4909372
A26: Power Used on site | C26: 12118.73 | D26: 14066.2 | E26: 12585.29 | F26: 15005.6 | G26: =SUM(C26:F26) -> 53775.82 | H26: =IF(G26>0,G26*1000/$G$21,"-") -> 113.8270674
A27: Power Imported | C27: 1060 | D27: 503 | E27: 1314 | F27: 69 | G27: 2946 | H27: =IF(G27>0,G27*1000/$G$21,"-") -> 6.23578665
A28: Parasitic Load | B28: % | C28: =100*(C26/C24) -> 20.19179214 | D28: =100*(D26/D24) -> 22.4116655 | E28: =100*(E26/E24) -> 23.12109387 | F28: =100*(F26/F24) -> 23.85609017 | G28: =IF(G24>0,1-G25/(G24+G27),"-") -> 0.2604404057
A29: Thermal Energy Produced ** | B29: MWh | C29: 0 | D29: 0 | E29: 0 | F29: 0 | G29: =SUM(C29:F29) -> 0 | H29: =IF(G29>0,G29*1000/$G$21,"-") -> -
A30: Thermal Energy Exported ** | C30: 0 | D30: 0 | E30: 0 | F30: 0 | G30: 0 | H30: =IF(G30>0,G30*1000/$G$21,"-") -> -
A31: R1 value | C31: 0.54 | G31: Design / Operational / n/a
A33: Waste Disposal & Recovery | B33: Unit | C33: Q1 | D33: Q2 | E33: Q3 | F33: Q4 | G33: Year Total | H33: % inputs
A34: APC Residues - produced | B34: tonnes | C34: 9176.28 | D34: 9460.98 | E34: 9343.5 | F34: 10866.79 | G34: =SUM(C34:F34) -> 38847.55 | H34: =IF(G34>0,G34/$G$21,"-") -> 0.08222845679
A35: IBA - produced | C35: 12909.82 | D35: 14997.88 | E35: 12069.34 | F35: 11401.08 | G35: 51378.12 | H35: =IF(G35>0,G35/$G$21,"-") -> 0.1087518652
A36: Metals recycling | C36: 3100.86 | D36: 3521.12 | E36: 3061.72 | F36: 2974.82 | G36: =SUM(C36:F36) -> 12658.52 | H36: 0.02679423966
A37: Other | C37: 0 | D37: 0 | E37: 0 | F37: 0 | G37: =SUM(C37:F37) -> 0 | H37: -
A38: Other | C38: 0 | D38: 0 | E38: 0 | F38: 0 | G38: 0 | H38: -
A39: Other | C39: 0 | D39: 0 | E39: 0 | F39: 0 | G39: 0 | H39: -
A41: Raw Material Usage | B41: Unit | C41: Q1 | D41: Q2 | E41: Q3 | F41: Q4 | G41: Year Total | H41: kg or Ltr /te
A42: Mains Water | B42: ltrs | C42: 33580 | D42: 33181 | E42: 37822 | F42: 42252 | G42: =SUM(C42:F42) -> 146835 | H42: =IF(G42>0,G42/$G$21,"-") -> 0.3108050688
A43: Other Water | B43: ltrs | C43: 0 | D43: 0 | E43: 0 | F43: 0 | G43: 0 | H43: =IF(G43>0,G43/$G$21,"-") -> -
A44: Ammonia | B44: kgs | C44: 0 | D44: 1000 | E44: 0 | F44: 1000 | G44: 2000 | H44: 0.004233392159
A45: Urea | B45: kgs | C45: 22000 | D45: 0 | E45: 66000 | F45: 87000 | G45: =SUM(C45:F45) -> 175000 | H45: 0.3704218139
A46: Activated Carbon | B46: kgs | C46: 61000 | D46: 78000 | E46: 34000 | F46: 76000 | G46: 249000 | H46: 0.5270573238
A47: Lime / hydrated lime | B47: kgs | C47: 935000 | D47: 882000 | E47: 664000 | F47: 839000 | G47: 3320000 | H47: 7.027430984
A48: Fuel oil | B48: ltrs | C48: 863850 | D48: 635160 | E48: 726910 | F48: 375480 | G48: =SUM(C48:F48) -> 2601400 | H48: 5.506373181
A49: Gas | B49: cf | C49: 0 | D49: 0 | E49: 0 | F49: 0 | G49: 0 | H49: -
A50: Caustic Soda | B50: kgs | C50: 62000 | D50: 41000 | E50: 74000 | F50: 50000 | G50: =SUM(C50:F50) -> 227000 | H50: 0.4804900101
A51: Hydrochloric Acid | B51: kgs | C51: 63000 | D51: 60000 | E51: 57000 | F51: 40000 | G51: =SUM(C51:F51) -> 220000 | H51: 0.4656731375
A52: Sand | B52: kgs | C52: 865000 | D52: 984000 | E52: 533000 | F52: 639000 | G52: =SUM(C52:F52) -> 3021000 | H52: 6.394538856
A53: Salt | B53: kgs | C53: 4000 | D53: 2000 | E53: 2000 | F53: 0 | G53: =SUM(C53:F53) -> 8000 | H53: 0.01693356864
A54: Other | C54: 0 | D54: 0 | E54: 0 | F54: 0 | G54: 0
A56: Summary | B56: Line/Unit | C56: Q1 | D56: Q2 | E56: Q3 | F56: Q4 | G56: Year Total | J56: Hrs in year
A57: Availability of waste combustion by line, hrs | B57: 1 | C57: 1620.28 | D57: 1597.82 | E57: 1515.69 | F57: 1584.78 | G57: =SUM(C57:F57) -> 6318.57 | H57: x % | J57: 8760
B58: 2 | C58: 1571.69 | D58: 1868.3 | E58: 1675.63 | F58: 1934.08 | G58: 7049.7 | H58: x %
B59: 3 | C59: 1794.36 | D59: 1856.48 | E59: 2036.99 | F59: 1982.12 | G59: 7669.95 | H59: x %
B60: 4 | C60: 0 | D60: 0 | E60: 0 | F60: 0 | G60: 0 | H60: x %
B61: 5 | C61: 0 | D61: 0 | E61: 0 | F61: 0 | G61: =SUM(C61:F61) -> 0 | H61: x %
A62: Overall Availability, mean avg. of all lines, hrs | C62: 1662.11 | D62: 1774.2 | E62: 1742.77 | F62: 1833.66 | G62: =AVERAGE(G57:G61) -> 4207.644 | H62: x %
A63: Hours of turbine operations, hrs | B63: 1 | C63: 1971.29 | D63: 2128.59 | E63: 2040.87 | F63: 2175.45 | G63: 8316.2 | H63: x %
A64: Hours of turbine operations, hrs | B64: 2 | C64: 0 | D64: 0 | E64: 0 | F64: 0 | G64: 0 | H64: x %
A65: Hours of heat / steam export | C65: 0 | D65: 0 | E65: 0 | F65: 0 | G65: 0 | H65: =IF(B65>0,G64/J57,"n/a") -> n/a
A66: Net Calorific Value of waste | B66: MJ/kg | C66: 13.52 | D66: 13.52 | E66: 13.52 | F66: 13.52 | H66: -
A67: Abnormal Events | B67: qty. | C67: 1 | D67: 2 | E67: 3 | F67: 0 | G67: 6 | H67: =IF(G67>0,"yes","no") -> yes
A68: Abnormal operation | B68: hours | C68: 0.5 | D68: 1 | E68: 5.75 | F68: 0 | G68: 7.25 | H68: =+(G68)/J57 -> 0.0008276255708
A69: Permit Breaches | B69: qty. | C69: 2 | D69: 1 | E69: 2 | F69: 1 | G69: 6 | H69: =IF(G69>0,"yes","no") -> yes

Sheet Operational Summary
A1: =+'Cover Page'!$B$29 -> Annual Performance Report 2021 | E1: =+'Cover Page'!$B$33 -> Kent Enviropower Limited
A3: Summary of Plant Operations and Maintenance during the reporting year | K3: Notes:
A5: The focus on preventative maintenance has continued to improve throughout 2021, all based on a plant criticality assessment that continues to be updated periodically – this assess the criticality of plant equipment against a number of criteria including plant availability, impact on Health, Safety or Environment, cost, duty etc. The number of intrusive and non-intrusive inspections and routines has been increased considerably, which a new condition monitoring contract has been implemented that sees the number of assets monitored increase four-fold in the last year – this has had a considerable impact, identifying faults earlier than ever and allowing them to be dealt with before impacting the plant. Line 1 underwent its normal planned outage in October 2021 where over 1,200 maintenance tasks were undertaken during the 3 week period. A significant drive on Health and Safety performance, combined with a number of changes to key contract partners, saw a 76% reduction in accidents, whilst the total scope of work, completed on time, has seen the most significant improvement in reliability in recent years in comparison to pre-outage. Significant works completed include refractory repairs to the Rowitec, automatic Inconel weld overlay to selected areas of the boiler and considerable repair and improvements to the Electrostatic Precipitator. | K5: Include summary of key operational and/or mainteanance activity undertaken in the year, such as any major component upgrades and/or replacements
A29: Summary of Residue Handling for the reporting year
A31: Bottom ash, the combined boiler and ESP ash and the flue gas treatment residue (FGTR) from the bag filter system, are each sent for separate disposal off site by licensed contractors subject to waste licensing legislation. FGTR is not mixed with any other ash at any time. The bottom ash is likely to be subject to ferrous and non ferrous metals extraction. IBA is subject to hazardous assessment twice a month and approx. 42 vehicles are sent off site every week for recovery. The APC residues are tested quarterly and approx. 36 tankers are sent off site every week. | K31: Include in here a summary of residue handling regimes and destinations

Sheet Perf. Form 1
A1: 2021 | B1: Annual Reporting Performance Form 1
A3: Permit BR4551IC | F3: Operator: | G3: Kent Enviropower Limited
A4: Facility: | B4: =+'[1]Cover Page'!B33:I33 -> Name of Facility as per Permit | F4: Form: | G4: Performance 1
A6: Reporting Period from: | D6: 2021-01-01 | F6: to: | G6: 2021-12-31
A8: =+A1 -> 2021 | B8: Annual Reporting of Waste Disposal and Recovery
A9: Waste Description | C9: Disposal Route(s) | E9: Disposal Tonnes | G9: Recovery Tonnes | I9: % / tonne of waste incinerated
A10: 1) Hazardous Wastes
A11: APC Residues | C11: Landfill | E11: 22138.61 | I11: =IF((E11+G11)>0,(E11+G11)/'Operational Data'!$G$21, "-") -> 0.04686070899
A12: APC Residues | C12: Recycling | G12: 17945.18 | I12: =IF((E12+G12)>0,(E12+G12)/'Operational Data'!$G$21, "-") -> 0.03798449215
I13: =IF((E13+G13)>0,(E13+G13)/'Operational Data'!$G$21, "-") -> -
I14: =IF((E14+G14)>0,(E14+G14)/'Operational Data'!$G$21, "-") -> -
A15: Total Hazardous Waste | E15: =SUM(E11:F14) -> 22138.61 | G15: =SUM(G11:H14) -> 17945.18 | I15: =IF((E15+G15)>0,(E15+G15)/'Operational Data'!$G$21, "-") -> 0.08484520115
A17: 2) Non-Hazardous Wastes
A18: IBA | C18: Recycling | G18: 51378.12 | I18: =IF((E18+G18)>0,(E18+G18)/'Operational Data'!$G$21, "-") -> 0.1087518652
A19: Ferrous Metal | C19: Recycling | G19: 12658.52 | I19: =IF((E19+G19)>0,(E19+G19)/'Operational Data'!$G$21, "-") -> 0.02679423966
I20: =IF((E20+G20)>0,(E20+G20)/'Operational Data'!$G$21, "-") -> -
I21: =IF((E21+G21)>0,(E21+G21)/'Operational Data'!$G$21, "-") -> -
I22: =IF((E22+G22)>0,(E22+G22)/'Operational Data'!$G$21, "-") -> -
A23: Total Non-Hazardous Waste | E23: =SUM(E18:F22) -> 0 | G23: =SUM(G18:H22) -> 64036.64 | I23: =IF((E23+G23)>0,(E23+G23)/'Operational Data'!$G$21, "-") -> 0.1355461048
A24: TOTAL WASTE | E24: =+E23+E15 -> 22138.61 | G24: =+G23+G15 -> 81981.82 | I24: =IF((E24+G24)>0,(E24+G24)/'Operational Data'!$G$21, "-") -> 0.220391306
A26: Operator’s comments :
A31: =+A1 -> 2021 | B31: Annual Reporting of Water and Other Raw Material Usage
A32: Raw Material | E32: Usage | G32: Unit | H32: Specific Useage | J32: Unit
A33: Mains Water | E33: ='Operational Data'!G42 -> 146835 | G33: m3 | H33: =IF(E33>0,E33/'Operational Data'!$G$21,"-") -> 0.3108050688 | J33: m3/te
A34: Total Water | E34: ='Operational Data'!G42 -> 146835 | G34: m3 | H34: =IF(E34>0,E34/'Operational Data'!$G$21,"-") -> 0.3108050688 | J34: m3/te
A35: Ammonia | E35: ='Operational Data'!G44 -> 2000 | G35: kgs | H35: =IF(E35>0,E35/'Operational Data'!$G$21,"-") -> 0.004233392159 | J35: kg/te
A36: Urea | E36: ='Operational Data'!G45 -> 175000 | G36: kgs | H36: =IF(E36>0,E36/'Operational Data'!$G$21,"-") -> 0.3704218139 | J36: kg/te
A37: Activated Carbon | E37: ='Operational Data'!G46 -> 249000 | G37: kgs | H37: =IF(E37>0,E37/'Operational Data'!$G$21,"-") -> 0.5270573238 | J37: kg/te
A38: Lime / hydrated lime | E38: ='Operational Data'!G47 -> 3320000 | G38: kgs | H38: =IF(E38>0,E38/'Operational Data'!$G$21,"-") -> 7.027430984 | J38: kg/te
A39: Fuel oil | E39: ='Operational Data'!G48 -> 2601400 | G39: ltrs | H39: =IF(E39>0,E39/'Operational Data'!$G$21,"-") -> 5.506373181 | J39: ltrs/te
A40: Gas | E40: ='Operational Data'!G49 -> 0 | G40: cf | H40: =IF(E40>0,E40/'Operational Data'!$G$21,"-") -> - | J40: cf/te
A41: Caustic Soda | E41: ='Operational Data'!G50 -> 227000 | G41: kgs | H41: =IF(E41>0,E41/'Operational Data'!$G$21,"-") -> 0.4804900101 | J41: kg/te
A42: Hydrochloric Acid | E42: ='Operational Data'!G51 -> 220000 | G42: kgs | H42: =IF(E42>0,E42/'Operational Data'!$G$21,"-") -> 0.4656731375 | J42: kg/te
A43: Sand | E43: ='Operational Data'!G52 -> 3021000 | G43: kgs | H43: =IF(E43>0,E43/'Operational Data'!$G$21,"-") -> 6.394538856 | J43: kg/te
A44: Salt | E44: ='Operational Data'!G53 -> 8000 | G44: kgs | H44: =IF(E44>0,E44/'Operational Data'!$G$21,"-") -> 0.01693356864 | J44: kg/te
A46: Operator’s comments :
A50: =+A31 -> 2021 | B50: Annual Reporting of other performance indicators
A51: Parameter | C51: Results by Line
C52: A1 | D52: A2 | E52: A3 | F52: A4 | G52: A5 | I52: Turbine 1 | J52: Turbine 2
A53: Operating hours for the year, hours | C53: 6318.57 | D53: 7049.7 | E53: 7669.95 | I53: 8316.2
A54: Number of periods of abnormal operation, qty. | C54: 4 | D54: 0 | E54: 2 | I54: 0
A55: Cumulative hours of abnormal operation for this year, hours | C55: 2 | D55: 0 | E55: 5.25 | I55: 0
A57: Operator’s comments :
A61: Signed: | G61: Date: | H61: 31st January 2022

Sheet Energy Form 1
A1: =+'Cover Page'!C39 -> 2021 | B1: Annual Reporting of Energy Usage/Export
A3: =+'Cover Page'!B31 -> Permit EPR/BR4551IC | F3: Operator: | G3: =+'Cover Page'!B37:I37 -> 0
A5: Facility: | B5: =+'Cover Page'!B33:I33 -> Kent Enviropower Limited | F5: Form: | G5: Energy 1
A7: Reporting Period from: | D7: 2021-01-01 | F7: to: | G7: 31st December 2021
A9: Energy Source | D9: Energy Usage | F9: Unit | G9: Specific Useage (KWh/tonne incinerated
A10: Electricity Produced | D10: =+'Operational Data'!G24 -> 240113.52 | F10: MWh | G10: =+'Operational Data'!H24 -> 508.2473464
A11: Electricity Imported | D11: =+'Operational Data'!G27 -> 2946 | F11: MWh | G11: =+'Operational Data'!H25 -> 380.4909372
A12: Electricity Exported | D12: =+'Operational Data'!G48 -> 2601400 | F12: MWh | G12: =+'Operational Data'!H21 -> 0.9893921177
A13: Gas Oil | D13: 2302.24 | F13: tonnes | G13: 59.48
A18: Operator’s comments :
A29: Signed: | G29: Date: | H29: 31st January 2022

Sheet Permit Compliance
A1: =+'Cover Page'!$B$29 -> Annual Performance Report 2021 | E1: =+'Cover Page'!$B$33 -> Kent Enviropower Limited
A3: Summary of Permit Compliance
A5: Compliance with permit limits for continuously monitored pollutants
A7: The plant met its emission limits as shown in the table below:
A8: Substance | C8: Percentage time compliant during operation | L8: Notes:
C9: Half-hourly limit | F9: Daily limit | L9: Report to 2 decimal places, i.e. xx.xx% Please provide a brief summary of each notification or non-compliance in the table (rather than just referring to notifications that were sent to the Regulator).
A10: Particulates | C10: 0.9999 | F10: 1
A11: Oxides of nitrogen | C11: 1 | F11: 1
A12: Sulphur dioxide | C12: 1 | F12: 1
A13: Carbon monoxide | C13: 0.9999 | F13: 1
A14: Total organic carbon | C14: 1 | F14: 1
A15: Hydrogen chloride | C15: 0.9999 | F15: 1
A16: Ammonia | C16: 1 | F16: 1
A19: Summary of any notifications or non-compliances under the permit
A20: Date | B20: Summary of notification or non-compliance [including Line/Reference] | E20: Reason | H20: Measures taken to prevent reoccurrence
A21: 2021-01-19 | B21: 19 Abnormal Operation Line 1 Dust | E21: Bag failure | H21: Bags are currently being investigated internally and with the O&M contractor to determine cause. | O21: 95% of 10-min averages
A22: 2021-03-09 | B22: 81 Schedule 1 Line 2 CO 2 x 10 min. | E22: Lack of control of Secondary Air | H22: Investigate the SA Function group after an overpressure and during purging or similar situations. Following the above investigation:-Review procedure ALT-G23-WI-1310 ‘actions in the event of a CO exceedance’ and train out any findings to the Operational team
A23: 2021-03-26 | B23: 82 Schedule 1 FE bunker fire | E23: Unknown ignition source - The most probable cause was Suspected to be a lithium Ion battery or flammable substance in the bunker | H23: No action required - The deluge system was activated and extinguished the fire
A24: 2021-04-21 | B24: 20 Abnormal Operation Line 1 Dust | E24: Bag failure | H24: Root cause analysis carried out and identified split bags caused the elevated dust. Bags replaced.
A25: 2021-05-15 | B25: 21 Abnormal Operation Line 1 Dust | E25: Bag failure | H25: As above
A26: 2021-05-19 | B26: 83 Schedule 1 Roof Louvres | E26: Louvre brackets found broken and prevented them from closing. | H26: Replace broken brackets.Review current ‘planned maintenance’ routines to identify if current checks require more frequency
A27: 2021-08-30 | B27: 84 Schedule 1 Line 2 Dust half hour | E27: Circoclean reactor was fully blocked | H27: Investigate the CC operation and maintenance, and review recent blockage. Investigate the feasibility of a filtering material on the recirculation damper
A28: 2021-09-06 | B28: 22 Abnormal Operation Line 3 Nox | E28: Non-return valve failure causing a disturbance of abatement plant operating effectively. | H28: No additional actions are considered necessary.
A29: 2021-09-19 | B29: 23 Abnormal Operation Line 1 Dust | E29: Large amount of ash completely blocked the gas path through the cicoclean reactor | H29: A review of the circoclean reactor is currently in progress to reduce any reacurrence.
A30: 2021-09-24 | B30: 24 Abnormal Operation Line 3 NOx | E30: 1. Bed temperatures were low 2. Water flow to SNCR system must be continuous 150kg/h. This was not at the moment of the exceedance, which caused the blockage of two from four lances | H30: The non return valves are currently part of the abatement plant routine weekly checks. The SNCR system is checked daily and at the time of the check no issues were identified with the system. Copy of day check sheet shown below
A31: 2021-09-25 | B31: 87 Schedule 1 Line 1 Ash leak | E31: Ash hung up (blocked) in residue hopper void. This suddenly released and free flowed. Note: All the ash flowed into a bunded area and was cleaned up. No ash left the facility. | H31: Reduce residue hopper levels in normal operation Empty residue hoppers in a controlled manner during a line shutdown Assess risks and review loop to allow discharges to the silo when the ID fan is off
A32: 2021-11-21 | B32: 88 Schedule 1 Line 2 HCl half hour | E32: Lime dosing function group in the DCS failed to run due to a roller valve showing >10% (The valve had stuck partially open by. Most likely due to ash restricting movement of the valve) | H32: Review planned maintenance and scope frequency in roller valves. Put in place routine functional checks & 6 monthly calibrations
A34: Summary of any complaints received and actions to taken to resolve them.
A35: Date | B35: Summary of complaint [including Line/Reference] | E35: Reason * | H35: Measures taken to prevent reoccurrence
A36: 2021-01-04T23:30:00 | B36: Noise | E36: Substantiated | G36: Operator | H36: ** see below
A37: 2021-01-05T07:50:00 | B37: Queues | E37: Substantiated | G37: Operator | H37: ** see below
A38: 2021-02-01T10:27:00 | B38: Odour | E38: Substantiated | G38: Operator | H38: ** see below
A39: 2021-03-16T19:00:00 | B39: Odour | E39: Substantiated | G39: Operator | H39: ** see below
A40: 2021-04-05T11:20:00 | B40: Odour | E40: Substantiated | G40: Operator | H40: ** see below
A41: 2021-04-07T09:30:00 | B41: Odour | E41: Substantiated | G41: Operator | H41: ** see below
A42: 2021-04-29T08:20:00 | B42: Odour | E42: Substantiated | G42: Operator | H42: ** see below
A43: 2021-04-30T07:30:00 | B43: Odour | E43: Substantiated | G43: Operator | H43: ** see below
A44: 2021-05-01T14:00:00 | B44: Odour | E44: Substantiated | G44: Operator | H44: ** see below
A45: 2021-05-17T08:28:00 | B45: Odour | E45: Substantiated | G45: Operator | H45: ** see below
A46: 2021-05-17T10:00:00 | B46: Foul sewer overflowing onto soil | E46: Substantiated | G46: Operator | H46: ** see below
A47: 2021-05-19T08:00:00 | B47: Odour | E47: Substantiated | G47: Operator | H47: ** see below
A48: 2021-06-02T09:00:00 | B48: Flies | E48: Not Substantiated | G48: Operator | H48: N/A
A49: 2021-06-02T09:00:00 | B49: Flies | E49: Not Substantiated | G49: Operator | H49: N/A
A50: 2021-06-02T09:00:00 | B50: Flies | E50: Not Substantiated | G50: Operator | H50: N/A
A51: 2021-06-02T09:00:00 | B51: Flies | E51: Not Substantiated | G51: Operator | H51: N/A
A52: 2021-06-02T09:00:00 | B52: Flies | E52: Not Substantiated | G52: Operator | H52: N/A
A53: 2021-06-02T09:00:00 | B53: Flies | E53: Not Substantiated | G53: Operator | H53: N/A
A54: 2021-06-02T09:00:00 | B54: Flies | E54: Not Substantiated | G54: Operator | H54: N/A
A55: 2021-06-02T09:00:00 | B55: Flies | E55: Not Substantiated | G55: Operator | H55: N/A
A56: 2021-06-02T09:00:00 | B56: Flies | E56: Not Substantiated | G56: Operator | H56: N/A
A57: 2021-06-02T09:00:00 | B57: Flies | E57: Not Substantiated | G57: Operator | H57: N/A
A58: 2021-06-02T12:57:00 | B58: Flies | E58: Not Substantiated | G58: Operator | H58: N/A
A59: 2021-06-03T09:00:00 | B59: Odour | E59: Substantiated | G59: Operator | H59: ** see below
A60: 2021-06-11T14:00:00 | B60: Flies | E60: Not Substantiated | G60: Operator | H60: N/A
A61: 2021-06-12T13:30:00 | B61: Odour | E61: Substantiated | G61: Operator | H61: ** see below
A62: 2021-06-14T07:30:00 | B62: Odour | E62: Not Substantiated | G62: Operator | H62: N/A
A63: 2021-06-14T16:00:00 | B63: Flies | E63: Not Substantiated | G63: Operator | H63: N/A
A64: 2021-06-14T16:00:00 | B64: Flies | E64: Not Substantiated | G64: Operator | H64: N/A
A65: 2021-06-14T16:00:00 | B65: Flies | E65: Not Substantiated | G65: Operator | H65: N/A
A66: 2021-06-23T15:50:00 | B66: Odour | E66: Substantiated | G66: Operator | H66: ** see below
A67: 2021-07-14T10:34:00 | B67: Odour | E67: Substantiated | G67: Operator | H67: ** see below
A68: 2021-07-29T11:50:00 | B68: Odour | E68: Substantiated | G68: Operator | H68: ** see below
A69: 2021-09-29T09:30:00 | B69: Odour | E69: Substantiated | G69: Operator | H69: ** see below
A70: 2021-10-11T08:00:00 | B70: Odour | E70: Substantiated | G70: Operator | H70: ** see below
A71: 2021-11-25T15:00:00 | B71: Odour | E71: Substantiated | G71: Operator | H71: ** see below
A72: 2021-11-28T09:35:00 | B72: Odour | E72: Substantiated | G72: Operator | H72: ** see below
A73: 2021-12-20T10:00:00 | B73: Odour | E73: Not Substantiated | G73: Operator | H73: N/A
A74: ** Comments NOISE - This was a one off event when the ACC (Air Cooled Condensor) tripped and a release of steam generated noise for a brief period. ODOUR - The majority of odour complaints have been justified on wind direction. A reportable event occured when it was found that roof louvres had failed to close with the potential to cause odour. An odour survey conducted at the end of 2020 was postponed due to Covid restrictions and has now been rearranged for February 2022 to discuss potential future arrangements. | E74: * including whether substantiated by the operator or the EA

Sheet Improvements
A1: =+'Cover Page'!$B$29 -> Annual Performance Report 2021 | E1: =+'Cover Page'!$B$33 -> Kent Enviropower Limited
A3: Summary of Plant Improvements
A5: Summary of any efficiency improvements that have been completed within the year.
A6: All of the lighting around site has been replaced with LED lighting during this year – more efficient and better coverage. Major repairs to the ESP (electro static precipitators) on Line 1, resulting in improved efficiency – Lines 2 and 3 to follow in March. Optimised fuel oil usage resulting in a significant reduction. Reduction in the use of Urea, as we found a long standing fault that significantly increase use.
A16: Summary of any permit improvement conditions that have been completed within the year and the resulting environmental benefits.
A17: There have been no permit improvement conditions completed during the year.
A27: Summary of any changes to the plant or operating techniques which required a variation to the permit and a summary of the resulting environmental impact.
A28: There have been no changes to the plant or operating techniques requiring a permit variation.
A38: Summary of any other improvements made to the plant or planned to be made and a summary of the resulting environmental benefits.
A39: The facility completed replacing its Continuous Emission Monitoring System (CEMS) and these are now fully operational.

Sheet Public Liasion
A1: =+'Cover Page'!$B$29 -> Annual Performance Report 2021 | E1: =+'Cover Page'!$B$33 -> Kent Enviropower Limited
A3: Details of Public & Stakeholder Liasion
A5: Summary of events held during the reporting year.
A6: Date | C6: Description
A7: 2021-02-02 | C7: The Facility has an active liaison group involving representatives from the following stakeholders: • Chairman - Mr Brian White • Environment Agency • 10 Local Residents • Councillors Walker and Hammond (TMBC members) • Councillors Robertson, Harwood and Daley (MBC members). Cllr Daley is also a member of KCC. • Councillors Homewood and Bird (KCC members) • Maidstone Borough Council Environmental Health, Wilcock • Councillors Walker and Balcombe (Aylesford Parish Council) • Tonbridge & Malling & Maidstone Borough Council Environmental Health • Kent County Council Waste Management • Kent Enviropower
A9: 2021-06-01
A11: 2021-10-05
A16: List of events planned for next year
A17: Date | C17: Description
A18: February 2022 | C18: Please see opposite
A20: June 2022
A22: October 2022
A29: If you wish to be involved in the public liasion programme, please contact Brian White (Chairman) - Email: drbdwhite@yahoo.co.uk

Sheet Residue Quality
A1: =+'Cover Page'!$B$29 -> Annual Performance Report 2021 | E1: =+'Cover Page'!$B$33 -> Kent Enviropower Limited
A3: Residue Quality Monitoring Requirements
A5: Summary of monitoring undertaken and compliance
A6: Waste Description: Bottom Ash Parameter to be measured : TOC or LOI, Metals (Cd, Tl, Hg, Pb, Cr, Cu, Mn, Ni, As, Co, V, Sb, Zn) and their compounds and the total soluble fraction of these metals, dioxins/ furans and dioxin like PCB’s. Sampling and analysis as per Agency ash sampling protocol. Frequency: Quarterly (with the exception of the total soluble fraction which shall be sampled and analysed before the use of a new disposal or recycling route). Hazard assessment undertaken twice a month (24 samples a year)
A13: Commentary on any specific events
A14: Date & Event | C14: Description
A15: NA | C15: NA
A27: Residue Quality Monitoring Results
A28: Parameter (unit) | C28: Limit | D28: Normal Operation
D29: Bottom ash | F29: APC Residues
A30: Loss on Ignition (average %) | C30: <5% | D30: 0.83
A31: Total Organic Carbon (average %) | C31: <3% | D31: 0.23
A32: No. of Assessments Undertaken | C32: --- | D32: 28* | F32: 4
A33: No. of Hazardous Results | C33: --- | D33: 0
A35: Comments :
A36: * This equates to 24 IBA hazard assessments and 4 quarterly reports.

Sheet Water
A1: =+'Cover Page'!$B$29 -> Annual Performance Report 2021 | E1: =+'Cover Page'!$B$33 -> Kent Enviropower Limited
A3: Emissions to Water
A5: Summary of monitoring undertaken and compliance
A6: Parameters for which reports shall be made, in accordance with conditions of the Consent to the Discharge of Trade Effluent issued by Southern Water, are listed below and are measured monthly. These are not Environmental Permit limits but limits for disposal of effluent water discharged down sewage drains.
A13: Commentary on any specific events
A14: Date & Event | C14: Description
A15: 2021-02-01 | C15: Feb 21 - Mar 21 - Nov 21 - High suspended solids recorded. Investigation identified that new sample point 7.3 does not always contain enough water (non representative sample) and solids being sampled. This led to a slightly high average result. Samples are now only taken when sufficient water is available.
A17: 2021-03-01
A19: 2021-11-01
A22: Emissions to Water / Sewer
A23: Parameter | D23: Monitoring Frequency | G23: Limit | H23: Target | I23: Max. | J23: Average
A24: Arsenic | D24: monthly | G24: 1 | H24: 1 | I24: 0.01 | J24: 0.006666666667
A25: COD shaken | D25: monthly | G25: 800 | H25: 800 | I25: 3880 | J25: 346
A26: Chromium | D26: monthly | G26: 1 | H26: 1 | I26: 0.01 | J26: 0.006666666667
A27: Copper | D27: monthly | G27: 1 | H27: 1 | I27: 0.1 | J27: 0.02166666667
A28: Fluoride | D28: monthly | G28: 2 | H28: 2 | I28: 0.4 | J28: 0.1416666667
A29: Lead | D29: monthly | G29: 1 | H29: 1 | I29: 0.04 | J29: 0.01333333333
A30: Molybdenum | D30: monthly | G30: 1 | H30: 1 | I30: 0.04 | J30: 0.009166666667
A31: Nickel | D31: monthly | G31: 1 | H31: 1 | I31: 0.01 | J31: 0.006666666667
A32: Selenium | D32: monthly | G32: 1 | H32: 1 | I32: 0.01 | J32: 0.006666666667
A33: Suspended solids | D33: monthly | G33: 200 | H33: 200 | I33: 1725 | J33: 214.5
A34: Sulphate | D34: monthly | G34: 500 | H34: 500 | I34: 170 | J34: 56.50083333
A35: Zinc | D35: monthly | G35: 3 | H35: 3 | I35: 0.2 | J35: 0.06333333333
A36: pH | D36: monthly | G36: 10 | H36: 10 | I36: 7.4 | J36: 4.7

Sheet Air (periodic)
A1: =+'Cover Page'!$B$29 -> Annual Performance Report 2021 | E1: =+'Cover Page'!$B$33 -> Kent Enviropower Limited
A3: Emissions to Air (periodically monitored)
A5: Summary of monitoring undertaken, standards used and compliance | M5: Notes:
M6: Template may require adjustment for any bespoke monitoring requirements of permit.
A9: Results of emissions to air that are periodically monitored
A10: Substance | C10: Ref. Period | D10: Emission Limit Value | F10: Average | M10: User to add additional tables as necessary, depending on whether quarterly or bi-annual reporting is required for the compliance year
F11: A1 | G11: A2 | H11: A3 | I11: A4 | J11: A5
A12: Total Particulate Matter | C12: 1 hr | D12: 20 mg/m3 | F12: 0.19 | G12: 0.9 | H12: 0.58
A13: Ammonia | C13: 1 hr | D13: 20 mg/m3 | F13: 0.0965 | G13: 0.0905 | H13: 0.122
A14: Cadmium & Thallium | C14: 1 hr | D14: 0.05 mg/m3 | F14: 0.00102 | G14: 0.0013 | H14: 0.0013
A15: Heavy Metals | C15: 1 hr | D15: 0.5 mg/m3 | F15: 0.0385 | G15: 0.057 | H15: 0.0315
A16: Mercury | C16: 1 hr | D16: 0.05 mg/m3 | F16: 0.001465 | G16: 0.001 | H16: 0.000875
A17: Sulphur Dioxide | C17: 1 hr | D17: 200 mg/m3 | F17: 0.325 | G17: 0.0265 | H17: 0.0455
A18: Hydrogen Chloride | C18: 1 hr | D18: 30 mg/m3 | F18: 2.8 | G18: 6.95 | H18: 8.1
A19: Hydrogen Fluoride | C19: 1 hr | D19: 1 mg/m3 | F19: 0.0475 | G19: 0.066 | H19: 0.0745
A20: Total VOCs (as Carbon) | C20: 4 hrs | D20: 20 mg/m3 | F20: 4.2 | G20: 0.49 | H20: 0.42
A21: Oxides of Nitrogen (as NO2) | C21: 4 hrs | D21: 400 mg/m3 | F21: 219.5 | G21: 172.5 | H21: 185.5
A22: Carbon Monoxide | C22: 4 hrs | D22: 150 mg/m3 | F22: 3.35 | G22: 3.4 | H22: 2.785
A23: Nitrous Oxide | C23: 4 hrs | D23: None set mg/m3 | F23: 0.835 | G23: 0.53 | H23: 0.625
A24: Dioxins / furans (I-TEQ)6 | C24: 6 hrs | D24: 0.1 µg/m3 | F24: 0.00695 | G24: 0.021 | H24: 0.0315
A25: Dioxins / furans (WHO-TEQ Humans / Mammals) 6 | C25: 6 hrs | D25: None set µg/m3 | F25: 0.0068 | G25: 0.02 | H25: 0.0315
A26: Dioxins / furans (WHO-TEQ Fish) 6 | C26: 6 hrs | D26: None set µg/m3 | F26: 0.00605 | G26: 0.0175 | H26: 0.028
A27: Dioxins / furans (WHO-TEQ Birds) 6 | C27: 6 hrs | D27: None set µg/m3 | F27: 0.00735 | G27: 0.0225 | H27: 0.036
A28: Dioxin-like PCBs (WHO-TEQ Humans / Mammals)6 | C28: 6 hrs | D28: None set µg/m3 | F28: 0.00048 | G28: 0.001065 | H28: 0.00155
A29: Dioxin-like PCBs (WHO-TEQ Fish)6 | C29: 6 hrs | D29: None set µg/m3 | F29: 2.1e-05 | G29: 4.6e-05 | H29: 6.95e-05
A30: Dioxin-like PCBs (WHO-TEQ Birds)6 | C30: 6 hrs | D30: None set µg/m3 | F30: 0.000945 | G30: 0.0021 | H30: 0.00305
A31: PAHs (DEFRA 16) | C31: 6 hrs | D31: None set µg/m3 | F31: 0.46 | G31: 0.955 | H31: 0.2315
A32: Anthanthrene | C32: 6 hrs | D32: None set µg/m3 | F32: 0.000495 | G32: 0.000725 | H32: 0.00055
A33: Benzo{a}anthracene | C33: 6 hrs | D33: None set µg/m3 | F33: 0.001905 | G33: 0.002025 | H33: 0.00055
A34: Benzo[b]fluoranthene | C34: 6 hrs | D34: None set µg/m3 | F34: 0.006605 | G34: 0.007125 | H34: 0.00055
A35: Benzo[k]fluoranthene | C35: 6 hrs | D35: None set µg/m3 | F35: 0.001555 | G35: 0.000725 | H35: 0.00055
A36: Benzo[b]naph(2,1-d}thiophene | C36: 6 hrs | D36: None set µg/m3 | F36: 0.008605 | G36: 0.005775 | H36: 0.00151
A37: Benzo[c]phenanthrene | C37: 6 hrs | D37: None set µg/m3 | F37: 0.001605 | G37: 0.000725 | H37: 0.00055
A38: Benzo[ghi]perylene | C38: 6 hrs | D38: None set µg/m3 | F38: 0.002655 | G38: 0.019625 | H38: 0.00055
A39: Benzo[a]pyrene | C39: 6 hrs | D39: None set µg/m3 | F39: 0.000495 | G39: 0.005125 | H39: 0.00055
A40: Cholanthrene | C40: 6 hrs | D40: None set µg/m3 | F40: 0.000495 | G40: 0.000725 | H40: 0.00055
A41: Chrysene | C41: 6 hrs | D41: None set µg/m3 | F41: 0.006605 | G41: 0.005255 | H41: 0.00055
A42: Cyclopenta(cd)pyrene | C42: 6 hrs | D42: None set µg/m3 | F42: 0.000495 | G42: 0.019125 | H42: 0.00055
A43: Dibenzo[ah]anthracene | C43: 6 hrs | D43: None set µg/m3 | F43: 0.000495 | G43: 0.000725 | H43: 0.00055
A44: Dibenzo[ai]pyrene | C44: 6 hrs | D44: None set µg/m3 | F44: 0.000495 | G44: 0.000725 | H44: 0.00055
A45: Fluoranthene | C45: 6 hrs | D45: None set µg/m3 | F45: 0.03325 | G45: 0.4588 | H45: 0.0059
A46: Indeno[1,2,3-cd]pyrene | C46: 6 hrs | D46: None set µg/m3 | F46: 0.000495 | G46: 0.0056 | H46: 0.00055
A47: Naphthalene | C47: 6 hrs | D47: None set µg/m3 | F47: 0.2725 | G47: 0.257 | H47: 0.059
A48: Comments :

Sheet Air (CEMS)
A1: =+'Cover Page'!$B$29 -> Annual Performance Report 2021 | I1: =+'Cover Page'!$B$33 -> Kent Enviropower Limited
A3: Emissions to Air (continously monitored)
P4: Notes:
A5: Summary of monitoring undertaken, standards used and compliance | P5: Template may require adjustment for any bespoke monitoring requirements of permit
P6: Report to 2 decimal places, i.e. xx.xx%
A11: Results of emissions to air that are continuously monitored (maximum and average values for each line)
A12: Substance | B12: Reference Period | C12: Emission Limit Value | D12: A1 | F12: A2 | H12: A3 | J12: A4 | L12: A5
D13: Max. | E13: Avg. | F13: Max. | G13: Avg. | H13: Max. | I13: Avg. | J13: Max. | K13: Avg. | L13: Max. | M13: Avg.
A14: Oxides of nitrogen | B14: Daily mean | C14: 200 mg/m3 | D14: 186 | E14: 162 | F14: 186 | G14: 159 | H14: 203 | I14: 152
B15: ½ hourly mean | C15: 400 mg/m3 | D15: 394 | E15: 162 | F15: 267 | G15: 159 | H15: 440 | I15: 152
A16: Particulates | B16: Daily mean | C16: 10 mg/m3 | D16: 6.3 | E16: 0.49 | F16: 135 | G16: 0.53 | H16: 7.6 | I16: 1.97
B17: ½ hourly mean | C17: 30 mg/m3 | D17: 135 | E17: 0.53 | F17: 33.2 | G17: 2 | H17: 14.6 | I17: 1.98
A18: Total Organic Carbon | B18: Daily mean | C18: 10 mg/m3 | D18: 5.79 | E18: 0.92 | F18: 3.77 | G18: 0.43 | H18: 3.66 | I18: 0.61
B19: 97%ile in rolling year | C19: 10 mg/m3 | D19: 280 | E19: 1.02 | F19: 577 | G19: 0.54 | H19: 230 | I19: 0.66
A20: Hydrogen chloride | B20: Daily mean | C20: 10 mg/m3 | D20: 9.4 | E20: 3.5 | F20: 9.6 | G20: 5.25 | H20: 10 | I20: 5.26
B21: ½ hourly mean | C21: 60 mg/m3 | D21: 32 | E21: 4 | F21: 60 | G21: 5.21 | H21: 36 | I21: 5.3
A22: Sulphur dioxide | B22: Daily mean | C22: 50 mg/m3 | D22: 7.2 | E22: 0.9 | F22: 11 | G22: 0.87 | H22: 2.5 | I22: 0.36
B23: ½ hourly mean | C23: 200 mg/m3 | D23: 164 | E23: 0.96 | F23: 170 | G23: 0.92 | H23: 111 | I23: 0.36
A24: Carbon monoxide | B24: Daily mean | C24: 50 mg/m3 | D24: 46.4 | E24: 9.1 | F24: 38 | G24: 6 | H24: 24 | I24: 7.4
B25: ½ hourly mean * | C25: 100 mg/m3 * | D25: N/A | E25: N/A | F25: N/A | G25: N/A | H25: N/A | I25: N/A
B26: 95%ile 10-min avg * | C26: 150 mg/m3 * | D26: 6371 | E26: 9.75 | F26: 4494 | G26: 7.3 | H26: 1970 | I26: 7.85
A27: Ammonia | B27: Daily mean | C27: 10 mg/m3 | D27: 1.7 | E27: 0.46 | F27: 0.87 | G27: 0.19 | H27: 1 | I27: 0.46
A28: * = delete or amend as appropriate
A29: Comments :

Sheet HCl
A1: =+'Cover Page'!$B$29 -> Annual Performance Report 2021 | E1: =+'Cover Page'!$B$33 -> Kent Enviropower Limited
A3: Monitoring of Hydrogen Chloride emissions | D3: Whole Installation | G3: See Notes in Cell Q3 | J3: =+A3 -> Monitoring of Hydrogen Chloride emissions | N3: Per Combustion Line | Q3: Notes:
Q4: User to add logic to complete Whole installation, Table A5:G18. From the data in Per Combustion Line, Table J6:O79, subject to No. of lines installed
A5: mg/Nm3 | B5: 1/2 Hourly Reference Periods | E5: Daily Reference Periods
A6: =+'Cover Page'!C39 -> 2021 | B6: 1/2 hourly HCl ELV | C6: Monthly 1/2 hourly mean | D6: Highest 1/2 hourly maximum | E6: Daily HCl ELV | F6: Monthly daily mean | G6: Highest daily maximum | J6: =+A6 -> 2021 | K6: mg/Nm3 | L6: Monthly 1/2 hourly mean | M6: Monthly 1/2 hourly maximum | N6: Monthly daily mean | O6: Monthly daily maximum
A7: Jan | B7: 60 | C7: 2 | D7: 36.5 | E7: 10 | F7: 1.8 | G7: 6.4 | J7: A1 | K7: Jan | L7: 2.1 | M7: 17.6 | N7: 1.6 | O7: 6.4
A8: Feb | B8: 60 | C8: 2 | D8: 52.8 | E8: 10 | F8: 1.96 | G8: 4.7 | K8: Feb | L8: 1.6 | M8: 18.2 | N8: 1.5 | O8: 3.5
A9: Mar | B9: 60 | C9: 4.63 | D9: 23.6 | E9: 10 | F9: 4.73 | G9: 8.5 | K9: Mar | L9: 4 | M9: 19.4 | N9: 3.9 | O9: 6.4 | Q9: Whole Installation table A5:G18:
A10: Apr | B10: 60 | C10: 3.63 | D10: 39.3 | E10: 10 | F10: 3.63 | G10: 7.7 | K10: Apr | L10: 3.2 | M10: 24.2 | N10: 3.3 | O10: 6.9 | Q10: Mean: for 1/2 hourly and daily periods calculate mean of values across all operational combustion lines for the month
A11: May | B11: 60 | C11: 2.93 | D11: 28.4 | E11: 10 | F11: 2.93 | G11: 8 | K11: May | L11: 1.6 | M11: 15.2 | N11: 1.6 | O11: 2.6
A12: Jun | B12: 60 | C12: 5.86 | D12: 29.3 | E12: 10 | F12: 5.86 | G12: 9.6 | K12: Jun | L12: 4 | M12: 20.2 | N12: 3.9 | O12: 6
A13: Jul | B13: 60 | C13: 6.03 | D13: 32.7 | E13: 10 | F13: 6.06 | G13: 10 | K13: Jul | L13: 2.9 | M13: 16.2 | N13: 3 | O13: 5.5 | Q13: Maximum: for 1/2 hourly and daily periods use the highest value across all operational combustion lines for the month
A14: Aug | B14: 60 | C14: 6.9 | D14: 49.3 | E14: 10 | F14: 7.03 | G14: 9.9 | K14: Aug | L14: 5.5 | M14: 28.9 | N14: 5.4 | O14: 9.4
A15: Sep | B15: 60 | C15: 5.2 | D15: 47.2 | E15: 10 | F15: 4.9 | G15: 9.2 | K15: Sep | L15: 4.1 | M15: 29.4 | N15: 3.5 | O15: 6.7
A16: Oct | B16: 60 | C16: 6.1 | D16: 35.7 | E16: 10 | F16: 6.1 | G16: 8.1 | K16: Oct | L16: 5.6 | M16: 31.9 | N16: 5.7 | O16: 8.1
A17: Nov | B17: 60 | C17: 5.3 | D17: 60.3 | E17: 10 | F17: 5.3 | G17: 8.3 | K17: Nov | L17: 4.4 | M17: 21.8 | N17: 4.4 | O17: 7.9
A18: Dec | B18: 60 | C18: 5.7 | D18: 31.8 | E18: 10 | F18: 5.7 | G18: 9.4 | K18: Dec | L18: 4.8 | M18: 29 | N18: 4.7 | O18: 9.4
K19: Annual | L19: =AVERAGE(L7:L18) -> 3.65 | M19: =MAX(M7:M18) -> 31.9 | N19: =AVERAGE(N7:N18) -> 3.541666667 | O19: =MAX(O7:O18) -> 9.4
J21: =+A6 -> 2021 | K21: mg/Nm3 | L21: Monthly 1/2 hourly mean | M21: Monthly 1/2 hourly maximum | N21: Monthly daily mean | O21: Monthly daily maximum
J22: A2 | K22: Jan | L22: 1.4 | M22: 18.8 | N22: 1.4 | O22: 3.3
K23: Feb | L23: 1.8 | M23: 52.8 | N23: 1.8 | O23: 4
K24: Mar | L24: 5.5 | M24: 23.6 | N24: 5.9 | O24: 8.5
K25: Apr | L25: 4.6 | M25: 39.3 | N25: 4.6 | O25: 7.7
K26: May | L26: 3.7 | M26: 28.4 | N26: 3.7 | O26: 8
K27: Jun | L27: 6.7 | M27: 29.3 | N27: 6.8 | O27: 9.6
K28: Jul | L28: 7.5 | M28: 32.7 | N28: 7.5 | O28: 9.5
K29: Aug | L29: 7.5 | M29: 49.3 | N29: 7.6 | O29: 9.6
K30: Sep | L30: 5.6 | M30: 47.2 | N30: 5.4 | O30: 7.4
K31: Oct | L31: 6.1 | M31: 35.7 | N31: 6.1 | O31: 7.8
K32: Nov | L32: 6 | M32: 60.3 | N32: 6.1 | O32: 8.3
K33: Dec | L33: 6.2 | M33: 23.3 | N33: 6.2 | O33: 7.8
K34: Annual | L34: =AVERAGE(L22:L33) -> 5.216666667 | M34: =MAX(M22:M33) -> 60.3 | N34: =AVERAGE(N22:N33) -> 5.258333333 | O34: =MAX(O22:O33) -> 9.6
J36: =+A6 -> 2021 | K36: mg/Nm3 | L36: Monthly 1/2 hourly mean | M36: Monthly 1/2 hourly maximum | N36: Monthly daily mean | O36: Monthly daily maximum
J37: A3 | K37: Jan | L37: 2.5 | M37: 36.5 | N37: 2.4 | O37: 5.1
K38: Feb | L38: 2.6 | M38: 27.9 | N38: 2.6 | O38: 4.7
K39: Mar | L39: 4.4 | M39: 23.5 | N39: 4.4 | O39: 7
K40: Apr | L40: 3.1 | M40: 11.5 | N40: 3 | O40: 4.6
K41: May | L41: 3.5 | M41: 10.5 | N41: 3.5 | O41: 7.2
K42: Jun | L42: 6.9 | M42: 21.3 | N42: 6.9 | O42: 9.1
K43: Jul | L43: 7.7 | M43: 28.1 | N43: 7.7 | O43: 10
K44: Aug | L44: 7.9 | M44: 25.5 | N44: 8.1 | O44: 9.9
K45: Sep | L45: 6 | M45: 24.8 | N45: 5.9 | O45: 9.2
K46: Oct | L46: 6.7 | M46: 15.1 | N46: 6.7 | O46: 8
K47: Nov | L47: 5.6 | M47: 19.1 | N47: 5.6 | O47: 8.2
A48: Comments : | K48: Dec | L48: 6.3 | M48: 31.8 | N48: 6.3 | O48: 8.3
K49: Annual | L49: =AVERAGE(L37:L48) -> 5.266666667 | M49: =MAX(M37:M48) -> 36.5 | N49: =AVERAGE(N37:N48) -> 5.258333333 | O49: =MAX(O37:O48) -> 10
J51: =+A6 -> 2021 | K51: mg/Nm3 | L51: Monthly 1/2 hourly mean | M51: Monthly 1/2 hourly maximum | N51: Monthly daily mean | O51: Monthly daily maximum
J52: A4 | K52: Jan
K53: Feb
K54: Mar
K55: Apr
K56: May
K57: Jun
K58: Jul
K59: Aug
K60: Sep
K61: Oct
K62: Nov
K63: Dec
K64: Annual | L64: =AVERAGE(L52:L63) ->  | M64: =MAX(M52:M63) -> 0 | N64: =AVERAGE(N52:N63) ->  | O64: =MAX(O52:O63) -> 0
J66: =+A6 -> 2021 | K66: mg/Nm3 | L66: Monthly 1/2 hourly mean | M66: Monthly 1/2 hourly maximum | N66: Monthly daily mean | O66: Monthly daily maximum
J67: A5 | K67: Jan
K68: Feb
K69: Mar
K70: Apr
K71: May
K72: Jun
K73: Jul
K74: Aug
K75: Sep
K76: Oct
K77: Nov
K78: Dec
K79: Annual | L79: =AVERAGE(L67:L78) ->  | M79: =MAX(M67:M78) -> 0 | N79: =AVERAGE(N67:N78) ->  | O79: =MAX(O67:O78) -> 0

Sheet SO2
A1: =+'Cover Page'!$B$29 -> Annual Performance Report 2021 | E1: =+'Cover Page'!$B$33 -> Kent Enviropower Limited
A3: Monitoring of Sulphur dioxide emissions | D3: Whole Installation | G3: See Notes in Cell Q3 | J3: =+A3 -> Monitoring of Sulphur dioxide emissions | N3: Per Combustion Line | Q3: Notes:
Q4: User to add logic to complete Whole installation, Table A5:G18. From the data in Per Combustion Line, Table J6:O79, subject to No. of lines installed
A5: mg/Nm3 | B5: 1/2 Hourly Reference Periods | E5: Daily Reference Periods
A6: =+'Cover Page'!C39 -> 2021 | B6: 1/2 hourly SO2 ELV | C6: Monthly 1/2 hourly mean | D6: Highest 1/2 hourly maximum | E6: Daily SO2 ELV | F6: Monthly daily mean | G6: Highest daily maximum | J6: =+A6 -> 2021 | K6: mg/Nm3 | L6: Monthly 1/2 hourly mean | M6: Monthly 1/2 hourly maximum | N6: Monthly daily mean | O6: Monthly daily maximum
A7: Jan | B7: 200 | C7: 0.63 | D7: 56.2 | E7: 50 | F7: 0.6 | G7: 3.5 | J7: A1 | K7: Jan | L7: 0.8 | M7: 56.2 | N7: 0.7 | O7: 3.5
A8: Feb | B8: 200 | C8: 1.76 | D8: 91.3 | E8: 50 | F8: 1.5 | G8: 11.1 | K8: Feb | L8: 2.8 | M8: 61.4 | N8: 2.3 | O8: 7.2
A9: Mar | B9: 200 | C9: 0.63 | D9: 95.1 | E9: 50 | F9: 0.6 | G9: 2.8 | K9: Mar | L9: 0.4 | M9: 23.3 | N9: 0.4 | O9: 1.2 | Q9: Whole Installation table A5:G18:
A10: Apr | B10: 200 | C10: 0.46 | D10: 110.8 | E10: 50 | F10: 0.43 | G10: 2.5 | K10: Apr | L10: 0.4 | M10: 45.2 | N10: 0.3 | O10: 1 | Q10: Mean: for 1/2 hourly and daily periods calculate mean of values across all operational combustion lines for the month
A11: May | B11: 200 | C11: 1.03 | D11: 56 | E11: 50 | F11: 1 | G11: 3.9 | K11: May | L11: 1.4 | M11: 23.6 | N11: 1.5 | O11: 2.7
A12: Jun | B12: 200 | C12: 1.23 | D12: 169.8 | E12: 50 | F12: 1.2 | G12: 4.1 | K12: Jun | L12: 2.2 | M12: 57.9 | N12: 2.1 | O12: 3.4
A13: Jul | B13: 200 | C13: 0.63 | D13: 32.1 | E13: 50 | F13: 0.6 | G13: 1.9 | K13: Jul | L13: 0.5 | M13: 31.7 | N13: 0.5 | O13: 1.3 | Q13: Maximum: for 1/2 hourly and daily periods use the highest value across all operational combustion lines for the month
A14: Aug | B14: 200 | C14: 0.5 | D14: 53.2 | E14: 50 | F14: 0.5 | G14: 1.6 | K14: Aug | L14: 0.4 | M14: 26 | N14: 0.4 | O14: 1.1
A15: Sep | B15: 200 | C15: 0.43 | D15: 61.1 | E15: 50 | F15: 0.43 | G15: 1.7 | K15: Sep | L15: 0.5 | M15: 61.1 | N15: 0.5 | O15: 1.7
A16: Oct | B16: 200 | C16: 0.76 | D16: 36.7 | E16: 50 | F16: 0.76 | G16: 2.1 | K16: Oct | L16: 1.3 | M16: 36.7 | N16: 1.3 | O16: 2.1
A17: Nov | B17: 200 | C17: 0.53 | D17: 164.1 | E17: 50 | F17: 0.53 | G17: 3.9 | K17: Nov | L17: 0.6 | M17: 164.1 | N17: 0.6 | O17: 3.9
A18: Dec | B18: 200 | C18: 0.4 | D18: 49.3 | E18: 50 | F18: 0.4 | G18: 1.5 | K18: Dec | L18: 0.3 | M18: 27 | N18: 0.3 | O18: 0.7
K19: Annual | L19: =AVERAGE(L7:L18) -> 0.9666666667 | M19: =MAX(M7:M18) -> 164.1 | N19: =AVERAGE(N7:N18) -> 0.9083333333 | O19: =MAX(O7:O18) -> 7.2
J21: =+A6 -> 2021 | K21: mg/Nm3 | L21: Monthly 1/2 hourly mean | M21: Monthly 1/2 hourly maximum | N21: Monthly daily mean | O21: Monthly daily maximum
J22: A2 | K22: Jan | L22: 0.8 | M22: 19.8 | N22: 0.8 | O22: 3
K23: Feb | L23: 2.2 | M23: 91.3 | N23: 1.9 | O23: 11.1
K24: Mar | L24: 1.2 | M24: 95.1 | N24: 1.1 | O24: 6
K25: Apr | L25: 0.6 | M25: 23.4 | N25: 0.6 | O25: 1.3
K26: May | L26: 1.4 | M26: 56 | N26: 1.3 | O26: 3.9
K27: Jun | L27: 1.1 | M27: 169.8 | N27: 1.1 | O27: 4.1
K28: Jul | L28: 0.9 | M28: 32.1 | N28: 0.8 | O28: 1.9
K29: Aug | L29: 0.6 | M29: 53.2 | N29: 0.6 | O29: 1.6
K30: Sep | L30: 0.5 | M30: 33.4 | N30: 0.5 | O30: 1.1
K31: Oct | L31: 0.6 | M31: 36.2 | N31: 0.6 | O31: 1.3
K32: Nov | L32: 0.6 | M32: 12.2 | N32: 0.6 | O32: 1.4
K33: Dec | L33: 0.6 | M33: 49.3 | N33: 0.6 | O33: 1.5
K34: Annual | L34: =AVERAGE(L22:L33) -> 0.925 | M34: =MAX(M22:M33) -> 169.8 | N34: =AVERAGE(N22:N33) -> 0.875 | O34: =MAX(O22:O33) -> 11.1
J36: =+A6 -> 2021 | K36: mg/Nm3 | L36: Monthly 1/2 hourly mean | M36: Monthly 1/2 hourly maximum | N36: Monthly daily mean | O36: Monthly daily maximum
J37: A3 | K37: Jan | L37: 0.3 | M37: 29.7 | N37: 0.3 | O37: 0.5
K38: Feb | L38: 0.3 | M38: 20.3 | N38: 0.3 | O38: 0.8
K39: Mar | L39: 0.3 | M39: 22.4 | N39: 0.3 | O39: 1.3
K40: Apr | L40: 0.4 | M40: 110.8 | N40: 0.4 | O40: 2.5
K41: May | L41: 0.3 | M41: 14.2 | N41: 0.2 | O41: 0.6
K42: Jun | L42: 0.4 | M42: 20.2 | N42: 0.4 | O42: 1.3
K43: Jul | L43: 0.5 | M43: 23.5 | N43: 0.5 | O43: 1.3
K44: Aug | L44: 0.5 | M44: 28.2 | N44: 0.5 | O44: 1.1
K45: Sep | L45: 0.3 | M45: 23.4 | N45: 0.3 | O45: 0.8
K46: Oct | L46: 0.4 | M46: 34.8 | N46: 0.4 | O46: 1.2
K47: Nov | L47: 0.4 | M47: 53.1 | N47: 0.4 | O47: 1.2
A48: Comments : | K48: Dec | L48: 0.3 | M48: 24.2 | N48: 0.3 | O48: 1
K49: Annual | L49: =AVERAGE(L37:L48) -> 0.3666666667 | M49: =MAX(M37:M48) -> 110.8 | N49: =AVERAGE(N37:N48) -> 0.3583333333 | O49: =MAX(O37:O48) -> 2.5
J51: =+A6 -> 2021 | K51: mg/Nm3 | L51: Monthly 1/2 hourly mean | M51: Monthly 1/2 hourly maximum | N51: Monthly daily mean | O51: Monthly daily maximum
J52: A4 | K52: Jan
K53: Feb
K54: Mar
K55: Apr
K56: May
K57: Jun
K58: Jul
K59: Aug
K60: Sep
K61: Oct
K62: Nov
K63: Dec
K64: Annual | L64: =AVERAGE(L52:L63) ->  | M64: =MAX(M52:M63) -> 0 | N64: =AVERAGE(N52:N63) ->  | O64: =MAX(O52:O63) -> 0
J66: =+A6 -> 2021 | K66: mg/Nm3 | L66: Monthly 1/2 hourly mean | M66: Monthly 1/2 hourly maximum | N66: Monthly daily mean | O66: Monthly daily maximum
J67: A5 | K67: Jan
K68: Feb
K69: Mar
K70: Apr
K71: May
K72: Jun
K73: Jul
K74: Aug
K75: Sep
K76: Oct
K77: Nov
K78: Dec
K79: Annual | L79: =AVERAGE(L67:L78) ->  | M79: =MAX(M67:M78) -> 0 | N79: =AVERAGE(N67:N78) ->  | O79: =MAX(O67:O78) -> 0

Sheet NOx
A1: =+'Cover Page'!$B$29 -> Annual Performance Report 2021 | E1: =+'Cover Page'!$B$33 -> Kent Enviropower Limited
A3: Monitoring of Oxides of Nitrogen emissions | D3: Whole Installation | G3: See Notes in Cell Q3 | J3: =+A3 -> Monitoring of Oxides of Nitrogen emissions | N3: Per Combustion Line | Q3: Notes:
Q4: User to add logic to complete Whole installation, Table A5:G18. From the data in Per Combustion Line, Table J6:O79, subject to No. of lines installed
A5: mg/Nm3 | B5: 1/2 Hourly Reference Periods | E5: Daily Reference Periods
A6: =+'Cover Page'!C39 -> 2021 | B6: 1/2 hourly NOx ELV | C6: Monthly 1/2 hourly mean | D6: Highest 1/2 hourly maximum | E6: Daily NOx ELV | F6: Monthly daily mean | G6: Highest daily maximum | J6: =+A6 -> 2021 | K6: mg/Nm3 | L6: Monthly 1/2 hourly mean | M6: Monthly 1/2 hourly maximum | N6: Monthly daily mean | O6: Monthly daily maximum
A7: Jan | B7: 400 | C7: 147.3 | D7: 266 | E7: 200 | F7: 147 | G7: 182 | J7: A1 | K7: Jan | L7: 168 | M7: 266 | N7: 167 | O7: 182
A8: Feb | B8: 400 | C8: 144.6 | D8: 344 | E8: 200 | F8: 144 | G8: 183 | K8: Feb | L8: 161 | M8: 344 | N8: 158 | O8: 183
A9: Mar | B9: 400 | C9: 153 | D9: 269 | E9: 200 | F9: 153.3 | G9: 183 | K9: Mar | L9: 168 | M9: 269 | N9: 167 | O9: 183 | Q9: Whole Installation table A5:G18:
A10: Apr | B10: 400 | C10: 151.3 | D10: 275 | E10: 200 | F10: 151 | G10: 183 | K10: Apr | L10: 164 | M10: 275 | N10: 163 | O10: 183 | Q10: Mean: for 1/2 hourly and daily periods calculate mean of values across all operational combustion lines for the month
A11: May | B11: 400 | C11: 157.3 | D11: 352 | E11: 200 | F11: 156.6 | G11: 186 | K11: May | L11: 173 | M11: 352 | N11: 172 | O11: 186
A12: Jun | B12: 400 | C12: 163.3 | D12: 267 | E12: 200 | F12: 163.6 | G12: 186 | K12: Jun | L12: 174 | M12: 258 | N12: 175 | O12: 185
A13: Jul | B13: 400 | C13: 171.6 | D13: 312 | E13: 200 | F13: 172.3 | G13: 189 | K13: Jul | L13: 168 | M13: 312 | N13: 169 | O13: 186 | Q13: Maximum: for 1/2 hourly and daily periods use the highest value across all operational combustion lines for the month
A14: Aug | B14: 400 | C14: 177.3 | D14: 316 | E14: 200 | F14: 177.3 | G14: 192 | K14: Aug | L14: 170 | M14: 316 | N14: 171 | O14: 183
A15: Sep | B15: 400 | C15: 165.2 | D15: 440.7 | E15: 200 | F15: 166.4 | G15: 203 | K15: Sep | L15: 161.2 | M15: 394.3 | N15: 163.3 | O15: 184.6
A16: Oct | B16: 400 | C16: 165.6 | D16: 287.3 | E16: 200 | F16: 166.1 | G16: 185.7 | K16: Oct | L16: 160.8 | M16: 268.9 | N16: 162.3 | O16: 170.8
A17: Nov | B17: 400 | C17: 147.5 | D17: 233.8 | E17: 200 | F17: 147.5 | G17: 183.9 | K17: Nov | L17: 133.2 | M17: 233.8 | N17: 133.2 | O17: 156.3
A18: Dec | B18: 400 | C18: 151.4 | D18: 217.8 | E18: 200 | F18: 151.5 | G18: 167 | K18: Dec | L18: 144 | M18: 217.8 | N18: 144.3 | O18: 158.6
K19: Annual | L19: =AVERAGE(L7:L18) -> 162.1 | M19: =MAX(M7:M18) -> 394.3 | N19: =AVERAGE(N7:N18) -> 162.0916667 | O19: =MAX(O7:O18) -> 186
J21: =+A6 -> 2021 | K21: mg/Nm3 | L21: Monthly 1/2 hourly mean | M21: Monthly 1/2 hourly maximum | N21: Monthly daily mean | O21: Monthly daily maximum
J22: A2 | K22: Jan | L22: 145 | M22: 258 | N22: 145 | O22: 169
K23: Feb | L23: 141 | M23: 242 | N23: 141 | O23: 163
K24: Mar | L24: 153 | M24: 227 | N24: 155 | O24: 175
K25: Apr | L25: 158 | M25: 223 | N25: 158 | O25: 179
K26: May | L26: 158 | M26: 251 | N26: 156 | O26: 181
K27: Jun | L27: 169 | M27: 267 | N27: 169 | O27: 186
K28: Jul | L28: 174 | M28: 247 | N28: 175 | O28: 185
K29: Aug | L29: 178 | M29: 243 | N29: 177 | O29: 185
K30: Sep | L30: 159.6 | M30: 215 | N30: 160.9 | O30: 168.2
K31: Oct | L31: 167.5 | M31: 223 | N31: 167.5 | O31: 185.3
K32: Nov | L32: 155.6 | M32: 215.5 | N32: 155.7 | O32: 182.2
K33: Dec | L33: 154.9 | M33: 198.4 | N33: 154.9 | O33: 165.1
K34: Annual | L34: =AVERAGE(L22:L33) -> 159.4666667 | M34: =MAX(M22:M33) -> 267 | N34: =AVERAGE(N22:N33) -> 159.5833333 | O34: =MAX(O22:O33) -> 186
J36: =+A6 -> 2021 | K36: mg/Nm3 | L36: Monthly 1/2 hourly mean | M36: Monthly 1/2 hourly maximum | N36: Monthly daily mean | O36: Monthly daily maximum
J37: A3 | K37: Jan | L37: 129 | M37: 176 | N37: 129 | O37: 151
K38: Feb | L38: 132 | M38: 195 | N38: 133 | O38: 159
K39: Mar | L39: 138 | M39: 187 | N39: 138 | O39: 161
K40: Apr | L40: 132 | M40: 190 | N40: 132 | O40: 161
K41: May | L41: 141 | M41: 336 | N41: 142 | O41: 161
K42: Jun | L42: 147 | M42: 227 | N42: 147 | O42: 167
K43: Jul | L43: 173 | M43: 294 | N43: 173 | O43: 189
K44: Aug | L44: 184 | M44: 279 | N44: 184 | O44: 192
K45: Sep | L45: 175 | M45: 440.7 | N45: 175.2 | O45: 203
K46: Oct | L46: 168.7 | M46: 287.3 | N46: 168.7 | O46: 185.7
K47: Nov | L47: 153.9 | M47: 222.1 | N47: 153.8 | O47: 183.9
A48: Comments : | K48: Dec | L48: 155.5 | M48: 210.3 | N48: 155.3 | O48: 167.3
K49: Annual | L49: =AVERAGE(L37:L48) -> 152.425 | M49: =MAX(M37:M48) -> 440.7 | N49: =AVERAGE(N37:N48) -> 152.5833333 | O49: =MAX(O37:O48) -> 203
J51: =+A6 -> 2021 | K51: mg/Nm3 | L51: Monthly 1/2 hourly mean | M51: Monthly 1/2 hourly maximum | N51: Monthly daily mean | O51: Monthly daily maximum
J52: A4 | K52: Jan
K53: Feb
K54: Mar
K55: Apr
K56: May
K57: Jun
K58: Jul
K59: Aug
K60: Sep
K61: Oct
K62: Nov
K63: Dec
K64: Annual | L64: =AVERAGE(L52:L63) ->  | M64: =MAX(M52:M63) -> 0 | N64: =AVERAGE(N52:N63) ->  | O64: =MAX(O52:O63) -> 0
J66: =+A6 -> 2021 | K66: mg/Nm3 | L66: Monthly 1/2 hourly mean | M66: Monthly 1/2 hourly maximum | N66: Monthly daily mean | O66: Monthly daily maximum
J67: A5 | K67: Jan
K68: Feb
K69: Mar
K70: Apr
K71: May
K72: Jun
K73: Jul
K74: Aug
K75: Sep
K76: Oct
K77: Nov
K78: Dec
K79: Annual | L79: =AVERAGE(L67:L78) ->  | M79: =MAX(M67:M78) -> 0 | N79: =AVERAGE(N67:N78) ->  | O79: =MAX(O67:O78) -> 0

Sheet TOC
A1: =+'Cover Page'!$B$29 -> Annual Performance Report 2021 | E1: =+'Cover Page'!$B$33 -> Kent Enviropower Limited
A3: Monitoring of Total organic carbon emissions | D3: Whole Installation | G3: See Notes in Cell Q3 | J3: =+A3 -> Monitoring of Total organic carbon emissions | N3: Per Combustion Line | Q3: Notes:
Q4: User to add logic to complete Whole installation, Table A5:G18. From the data in Per Combustion Line, Table J6:O79, subject to No. of lines installed
A5: mg/Nm3 | B5: 1/2 Hourly Reference Periods | E5: Daily Reference Periods
A6: =+'Cover Page'!C39 -> 2021 | B6: 1/2 hourly TOC ELV | C6: Monthly 1/2 hourly mean | D6: Highest 1/2 hourly maximum | E6: Daily TOC ELV | F6: Monthly daily mean | G6: Highest daily maximum | J6: =+A6 -> 2021 | K6: mg/Nm3 | L6: Monthly 1/2 hourly mean | M6: Monthly 1/2 hourly maximum | N6: Monthly daily mean | O6: Monthly daily maximum
A7: Jan | B7: 20 | C7: 0.48 | D7: 30.02 | E7: 10 | F7: 0.4 | G7: 1.36 | J7: A1 | K7: Jan | L7: 0.68 | M7: 17.24 | N7: 0.59 | O7: 1.36
A8: Feb | B8: 20 | C8: 1.05 | D8: 577.05 | E8: 10 | F8: 0.83 | G8: 3.78 | K8: Feb | L8: 1.53 | M8: 77.71 | N8: 1.42 | O8: 3.78
A9: Mar | B9: 20 | C9: 0.85 | D9: 273.33 | E9: 10 | F9: 0.67 | G9: 3.33 | K9: Mar | L9: 1.49 | M9: 61.71 | N9: 1.46 | O9: 3.33 | Q9: Whole Installation table A5:G18:
A10: Apr | B10: 20 | C10: 0.99 | D10: 79.15 | E10: 10 | F10: 0.92 | G10: 3.95 | K10: Apr | L10: 2.23 | M10: 79.15 | N10: 2.01 | O10: 3.95 | Q10: Mean: for 1/2 hourly and daily periods calculate mean of values across all operational combustion lines for the month
A11: May | B11: 20 | C11: 0.56 | D11: 42.98 | E11: 10 | F11: 0.51 | G11: 1.66 | K11: May | L11: 0.75 | M11: 12.58 | N11: 0.78 | O11: 1.66
A12: Jun | B12: 20 | C12: 0.78 | D12: 100.5 | E12: 10 | F12: 0.71 | G12: 2.46 | K12: Jun | L12: 0.98 | M12: 48.18 | N12: 0.78 | O12: 1.78
A13: Jul | B13: 20 | C13: 0.74 | D13: 40.44 | E13: 10 | F13: 0.73 | G13: 2.43 | K13: Jul | L13: 0.77 | M13: 40.44 | N13: 0.76 | O13: 2.43 | Q13: Maximum: for 1/2 hourly and daily periods use the highest value across all operational combustion lines for the month
A14: Aug | B14: 20 | C14: 1.16 | D14: 240.1 | E14: 10 | F14: 1.06 | G14: 5.79 | K14: Aug | L14: 1.32 | M14: 240.1 | N14: 1.24 | O14: 5.79
A15: Sep | B15: 20 | C15: 0.8 | D15: 280.1 | E15: 10 | F15: 0.56 | G15: 3.7 | K15: Sep | L15: 1 | M15: 280.1 | N15: 0.5 | O15: 1.3
A16: Oct | B16: 20 | C16: 0.53 | D16: 91 | E16: 10 | F16: 0.53 | G16: 3 | K16: Oct | L16: 0.7 | M16: 36.6 | N16: 0.7 | O16: 1.1
A17: Nov | B17: 20 | C17: 0.46 | D17: 27.8 | E17: 10 | F17: 0.43 | G17: 1.2 | K17: Nov | L17: 0.4 | M17: 27.8 | N17: 0.4 | O17: 1
A18: Dec | B18: 20 | C18: 0.5 | D18: 124.8 | E18: 10 | F18: 0.46 | G18: 1.3 | K18: Dec | L18: 0.5 | M18: 124.8 | N18: 0.4 | O18: 0.8
K19: Annual | L19: =AVERAGE(L7:L18) -> 1.029166667 | M19: =MAX(M7:M18) -> 280.1 | N19: =AVERAGE(N7:N18) -> 0.92 | O19: =MAX(O7:O18) -> 5.79
J21: =+A6 -> 2021 | K21: mg/Nm3 | L21: Monthly 1/2 hourly mean | M21: Monthly 1/2 hourly maximum | N21: Monthly daily mean | O21: Monthly daily maximum
J22: A2 | K22: Jan | L22: 0.3 | M22: 30.02 | N22: 0.2 | O22: 0.46
K23: Feb | L23: 1.13 | M23: 577.05 | N23: 0.62 | O23: 3.77
K24: Mar | L24: 0.69 | M24: 273.73 | N24: 0.21 | O24: 0.62
K25: Apr | L25: 0.35 | M25: 24.67 | N25: 0.35 | O25: 1.09
K26: May | L26: 0.53 | M26: 42.98 | N26: 0.38 | O26: 1.08
K27: Jun | L27: 0.65 | M27: 100.5 | N27: 0.65 | O27: 2.46
K28: Jul | L28: 0.55 | M28: 20.26 | N28: 0.51 | O28: 1.42
K29: Aug | L29: 0.65 | M29: 44.91 | N29: 0.63 | O29: 1.89
K30: Sep | L30: 0.8 | M30: 157.3 | N30: 0.7 | O30: 3.7
K31: Oct | L31: 0.3 | M31: 19.2 | N31: 0.3 | O31: 1
K32: Nov | L32: 0.3 | M32: 8.5 | N32: 0.3 | O32: 0.5
K33: Dec | L33: 0.3 | M33: 9.6 | N33: 0.3 | O33: 0.5
K34: Annual | L34: =AVERAGE(L22:L33) -> 0.5458333333 | M34: =MAX(M22:M33) -> 577.05 | N34: =AVERAGE(N22:N33) -> 0.4291666667 | O34: =MAX(O22:O33) -> 3.77
J36: =+A6 -> 2021 | K36: mg/Nm3 | L36: Monthly 1/2 hourly mean | M36: Monthly 1/2 hourly maximum | N36: Monthly daily mean | O36: Monthly daily maximum
J37: A3 | K37: Jan | L37: 0.46 | M37: 28.3 | N37: 0.42 | O37: 1.14
K38: Feb | L38: 0.49 | M38: 51.42 | N38: 0.46 | O38: 1.36
K39: Mar | L39: 0.39 | M39: 20.86 | N39: 0.36 | O39: 0.78
K40: Apr | L40: 0.41 | M40: 14.38 | N40: 0.41 | O40: 1.03
K41: May | L41: 0.4 | M41: 19.69 | N41: 0.37 | O41: 0.95
K42: Jun | L42: 0.71 | M42: 25.67 | N42: 0.7 | O42: 2.35
K43: Jul | L43: 0.92 | M43: 21.92 | N43: 0.92 | O43: 1.64
K44: Aug | L44: 1.51 | M44: 230.51 | N44: 1.32 | O44: 3.66
K45: Sep | L45: 0.6 | M45: 16.1 | N45: 0.5 | O45: 1.1
K46: Oct | L46: 0.6 | M46: 91 | N46: 0.6 | O46: 3
K47: Nov | L47: 0.7 | M47: 14.2 | N47: 0.6 | O47: 1.2
A48: Comments : | K48: Dec | L48: 0.7 | M48: 24.2 | N48: 0.7 | O48: 1.3
K49: Annual | L49: =AVERAGE(L37:L48) -> 0.6575 | M49: =MAX(M37:M48) -> 230.51 | N49: =AVERAGE(N37:N48) -> 0.6133333333 | O49: =MAX(O37:O48) -> 3.66
J51: =+A6 -> 2021 | K51: mg/Nm3 | L51: Monthly 1/2 hourly mean | M51: Monthly 1/2 hourly maximum | N51: Monthly daily mean | O51: Monthly daily maximum
J52: A4 | K52: Jan
K53: Feb
K54: Mar
K55: Apr
K56: May
K57: Jun
K58: Jul
K59: Aug
K60: Sep
K61: Oct
K62: Nov
K63: Dec
K64: Annual | L64: =AVERAGE(L52:L63) ->  | M64: =MAX(M52:M63) -> 0 | N64: =AVERAGE(N52:N63) ->  | O64: =MAX(O52:O63) -> 0
J66: =+A6 -> 2021 | K66: mg/Nm3 | L66: Monthly 1/2 hourly mean | M66: Monthly 1/2 hourly maximum | N66: Monthly daily mean | O66: Monthly daily maximum
J67: A5 | K67: Jan
K68: Feb
K69: Mar
K70: Apr
K71: May
K72: Jun
K73: Jul
K74: Aug
K75: Sep
K76: Oct
K77: Nov
K78: Dec
K79: Annual | L79: =AVERAGE(L67:L78) ->  | M79: =MAX(M67:M78) -> 0 | N79: =AVERAGE(N67:N78) ->  | O79: =MAX(O67:O78) -> 0

Sheet Particulates
A1: =+'Cover Page'!$B$29 -> Annual Performance Report 2021 | E1: =+'Cover Page'!$B$33 -> Kent Enviropower Limited
A3: Monitoring of Particulate matter emissions | D3: Whole Installation | G3: See Notes in Cell Q3 | J3: =+A3 -> Monitoring of Particulate matter emissions | N3: Per Combustion Line | Q3: Notes:
Q4: User to add logic to complete Whole installation, Table A5:G18. From the data in Per Combustion Line, Table J6:O79, subject to No. of lines installed
A5: mg/Nm3 | B5: 1/2 Hourly Reference Periods | E5: Daily Reference Periods
A6: =+'Cover Page'!C39 -> 2021 | B6: 1/2 hourly PM ELV | C6: Monthly 1/2 hourly mean | D6: Highest 1/2 hourly maximum | E6: Daily PM ELV | F6: Monthly daily mean | G6: Highest daily maximum | J6: =+A6 -> 2021 | K6: mg/Nm3 | L6: Monthly 1/2 hourly mean | M6: Monthly 1/2 hourly maximum | N6: Monthly daily mean | O6: Monthly daily maximum
A7: Jan | B7: 30 | C7: 0.866 | D7: 33.6 | E7: 10 | F7: 0.76 | G7: 1.5 | J7: A1 | K7: Jan | L7: 0.6 | M7: 33.6 | N7: 0.5 | O7: 1.1
A8: Feb | B8: 30 | C8: 0.9 | D8: 13.6 | E8: 10 | F8: 0.86 | G8: 2.9 | K8: Feb | L8: 0.8 | M8: 12.2 | N8: 0.8 | O8: 2.9
A9: Mar | B9: 30 | C9: 1.26 | D9: 13.9 | E9: 10 | F9: 1.23 | G9: 5 | K9: Mar | L9: 1.3 | M9: 13.9 | N9: 1.3 | O9: 5 | Q9: Whole Installation table A5:G18:
A10: Apr | B10: 30 | C10: 1.56 | D10: 63.8 | E10: 10 | F10: 1.46 | G10: 4.8 | K10: Apr | L10: 1.5 | M10: 63.8 | N10: 1.3 | O10: 2.9 | Q10: Mean: for 1/2 hourly and daily periods calculate mean of values across all operational combustion lines for the month
A11: May | B11: 30 | C11: 1.53 | D11: 46.1 | E11: 10 | F11: 1.56 | G11: 6.3 | K11: May | L11: 0.8 | M11: 46.1 | N11: 0.8 | O11: 6.3
A12: Jun | B12: 30 | C12: 1.1 | D12: 25.7 | E12: 10 | F12: 1.1 | G12: 6.4 | K12: Jun | L12: 0.2 | M12: 0.5 | N12: 0.2 | O12: 0.3
A13: Jul | B13: 30 | C13: 1.43 | D13: 8.06 | E13: 10 | F13: 1.43 | G13: 7.9 | K13: Jul | L13: 0.2 | M13: 0.4 | N13: 0.2 | O13: 0.2 | Q13: Maximum: for 1/2 hourly and daily periods use the highest value across all operational combustion lines for the month
A14: Aug | B14: 30 | C14: 2.16 | D14: 17.76 | E14: 10 | F14: 2.1 | G14: 6.9 | K14: Aug | L14: 0.3 | M14: 14.5 | N14: 0.2 | O14: 0.3
A15: Sep | B15: 30 | C15: 2.46 | D15: 134.7 | E15: 10 | F15: 2.5 | G15: 7.6 | K15: Sep | L15: 0.3 | M15: 134.7 | N15: 0.2 | O15: 0.4
A16: Oct | B16: 30 | C16: 1.3 | D16: 16.6 | E16: 10 | F16: 1.3 | G16: 4.4 | K16: Oct | L16: 0.1 | M16: 0.3 | N16: 0.1 | O16: 0.1
A17: Nov | B17: 30 | C17: 1.43 | D17: 14.6 | E17: 10 | F17: 1.43 | G17: 4.7 | K17: Nov | L17: 0.1 | M17: 1.8 | N17: 0.1 | O17: 0.1
A18: Dec | B18: 30 | C18: 2.03 | D18: 9.2 | E18: 10 | F18: 2.03 | G18: 4.7 | K18: Dec | L18: 0.2 | M18: 4.3 | N18: 0.2 | O18: 1.9
K19: Annual | L19: =AVERAGE(L7:L18) -> 0.5333333333 | M19: =MAX(M7:M18) -> 134.7 | N19: =AVERAGE(N7:N18) -> 0.4916666667 | O19: =MAX(O7:O18) -> 6.3
J21: =+A6 -> 2021 | K21: mg/Nm3 | L21: Monthly 1/2 hourly mean | M21: Monthly 1/2 hourly maximum | N21: Monthly daily mean | O21: Monthly daily maximum
J22: A2 | K22: Jan | L22: 0.9 | M22: 11.2 | N22: 0.7 | O22: 1.4
K23: Feb | L23: 0.8 | M23: 7.4 | N23: 0.8 | O23: 2
K24: Mar | L24: 0.9 | M24: 8.1 | N24: 0.9 | O24: 1.1
K25: Apr | L25: 1.5 | M25: 10.1 | N25: 1.5 | O25: 4.8
K26: May | L26: 2.2 | M26: 14.3 | N26: 2.3 | O26: 6
K27: Jun | L27: 2 | M27: 25.7 | N27: 2 | O27: 6.4
K28: Jul | L28: 3 | M28: 21.8 | N28: 3 | O28: 7.9
K29: Aug | L29: 3.3 | M29: 33.2 | N29: 3.3 | O29: 6.9
K30: Sep | L30: 1.9 | M30: 7.3 | N30: 1.9 | O30: 2.4
K31: Oct | L31: 1.9 | M31: 16.6 | N31: 1.9 | O31: 4.4
K32: Nov | L32: 2.5 | M32: 7 | N32: 2.4 | O32: 3.4
K33: Dec | L33: 3.1 | M33: 9.2 | N33: 3.1 | O33: 4.7
K34: Annual | L34: =AVERAGE(L22:L33) -> 2 | M34: =MAX(M22:M33) -> 33.2 | N34: =AVERAGE(N22:N33) -> 1.983333333 | O34: =MAX(O22:O33) -> 7.9
J36: =+A6 -> 2021 | K36: mg/Nm3 | L36: Monthly 1/2 hourly mean | M36: Monthly 1/2 hourly maximum | N36: Monthly daily mean | O36: Monthly daily maximum
J37: A3 | K37: Jan | L37: 1.1 | M37: 13.3 | N37: 1.1 | O37: 1.5
K38: Feb | L38: 1.1 | M38: 13.6 | N38: 1 | O38: 1.3
K39: Mar | L39: 1.6 | M39: 7.3 | N39: 1.5 | O39: 3.2
K40: Apr | L40: 1.7 | M40: 3.3 | N40: 1.6 | O40: 2
K41: May | L41: 1.6 | M41: 2.9 | N41: 1.6 | O41: 2.1
K42: Jun | L42: 1.1 | M42: 2.3 | N42: 1.1 | O42: 2
K43: Jul | L43: 1.1 | M43: 2 | N43: 1.1 | O43: 1.5
K44: Aug | L44: 2.9 | M44: 5.6 | N44: 2.8 | O44: 4.3
K45: Sep | L45: 5.2 | M45: 11.6 | N45: 5.4 | O45: 7.6
K46: Oct | L46: 1.9 | M46: 4.3 | N46: 1.9 | O46: 2.7
K47: Nov | L47: 1.7 | M47: 14.6 | N47: 1.8 | O47: 4.7
A48: Comments : | K48: Dec | L48: 2.8 | M48: 6.8 | N48: 2.8 | O48: 4.1
K49: Annual | L49: =AVERAGE(L37:L48) -> 1.983333333 | M49: =MAX(M37:M48) -> 14.6 | N49: =AVERAGE(N37:N48) -> 1.975 | O49: =MAX(O37:O48) -> 7.6
J51: =+A6 -> 2021 | K51: mg/Nm3 | L51: Monthly 1/2 hourly mean | M51: Monthly 1/2 hourly maximum | N51: Monthly daily mean | O51: Monthly daily maximum
J52: A4 | K52: Jan
K53: Feb
K54: Mar
K55: Apr
K56: May
K57: Jun
K58: Jul
K59: Aug
K60: Sep
K61: Oct
K62: Nov
K63: Dec
K64: Annual | L64: =AVERAGE(L52:L63) ->  | M64: =MAX(M52:M63) -> 0 | N64: =AVERAGE(N52:N63) ->  | O64: =MAX(O52:O63) -> 0
J66: =+A6 -> 2021 | K66: mg/Nm3 | L66: Monthly 1/2 hourly mean | M66: Monthly 1/2 hourly maximum | N66: Monthly daily mean | O66: Monthly daily maximum
J67: A5 | K67: Jan
K68: Feb
K69: Mar
K70: Apr
K71: May
K72: Jun
K73: Jul
K74: Aug
K75: Sep
K76: Oct
K77: Nov
K78: Dec
K79: Annual | L79: =AVERAGE(L67:L78) ->  | M79: =MAX(M67:M78) -> 0 | N79: =AVERAGE(N67:N78) ->  | O79: =MAX(O67:O78) -> 0

Sheet CO 95% 10 min
A1: =+'Cover Page'!$B$29 -> Annual Performance Report 2021 | E1: =+'Cover Page'!$B$33 -> Kent Enviropower Limited
A3: Monitoring of Carbon Monoxide (10-minute avg) | E3: Whole Installation | H3: See Notes in Cell S3 | J3: =+A3 -> Monitoring of Carbon Monoxide (10-minute avg) | O3: Per Combustion Line | Q3: Notes: | S3: Notes:
S4: User to add logic to complete Whole installation, Table A5:H18. From the data in Per Combustion Line, Table K6:Q79, subject to No. of lines installed
A5: mg/Nm3 | B5: 10-minute Reference Periods | F5: Daily Reference Periods
A6: =+'Cover Page'!C39 -> 2021 | B6: 95%ile 10-min avg CO ELV | C6: 95%ile 10-min avg maximum | D6: Monthly CO 10-min avg mean | E6: 10-min avg maximum | F6: Daily CO ELV | G6: Monthly daily mean | H6: Highest daily maximum | K6: =+A6 -> 2021 | L6: mg/Nm3 | M6: 95%ile 10-min avg maximum | N6: Monthly CO 10-min avg mean | O6: 10-min avg maximum | P6: Monthly daily mean | Q6: Monthly daily maximum
A7: Jan | B7: 150 | C7: 18.9 | D7: 5 | E7: 1142 | F7: 50 | G7: 4.6 | H7: 17 | K7: A1 | L7: Jan | M7: 5.8 | N7: 3 | O7: 1066 | P7: 3 | Q7: 10
A8: Feb | B8: =+B7 -> 150 | C8: 34.5 | D8: 8.3 | E8: 4494 | F8: =+F7 -> 50 | G8: 6.6 | H8: 18 | L8: Feb | M8: 34.5 | N8: 10 | O8: 2694 | P8: 8 | Q8: 18
A9: Mar | B9: 150 | C9: 35 | D9: 8.3 | E9: 1522 | F9: 50 | G9: 8.3 | H9: 16 | L9: Mar | M9: 23.7 | N9: 6 | O9: 1522 | P9: 14 | Q9: 6 | S9: Whole Installation table A5:H18:
A10: Apr | B10: 150 | C10: 49.9 | D10: 8 | E10: 2226 | F10: 50 | G10: 7.3 | H10: 21 | L10: Apr | M10: 40.9 | N10: 9 | O10: 1511 | P10: 7 | Q10: 11 | S10: Mean: for 10-min and daily periods use average of all operational combustion lines.
A11: May | B11: 150 | C11: 49.6 | D11: 8.3 | E11: 1771 | F11: 50 | G11: 7.3 | H11: 29 | L11: May | M11: 26 | N11: 7 | O11: 289 | P11: 7 | Q11: 12
A12: Jun | B12: 150 | C12: 68 | D12: 9.6 | E12: 4267 | F12: 50 | G12: 9.6 | H12: 38 | L12: Jun | M12: 68 | N12: 14 | O12: 1986 | P12: 13 | Q12: 27
A13: Jul | B13: 150 | C13: 48.7 | D13: 9.6 | E13: 1871 | F13: 50 | G13: 9.6 | H13: 23 | L13: Jul | M13: 48.7 | N13: 12 | O13: 1871 | P13: 12 | Q13: 23 | S13: Maximum: for 10-min and daily periods use the highest of all operational combustion lines in any month.
A14: Aug | B14: 150 | C14: 57.9 | D14: 10.3 | E14: 2579 | F14: 50 | G14: 9 | H14: 25 | L14: Aug | M14: 50.1 | N14: 14 | O14: 2579 | P14: 12 | Q14: 25
A15: Sep | B15: 150 | C15: 59.8 | D15: 11.5 | E15: 4801 | F15: 50 | G15: 9 | H15: 45 | L15: Sep | M15: 59.8 | N15: 16.8 | O15: 4801.1 | P15: 11.7 | Q15: 45.7
A16: Oct | B16: 150 | C16: 35.3 | D16: 8.6 | E16: 2540 | F16: 50 | G16: 8.4 | H16: 37 | L16: Oct | M16: 35.3 | N16: 13.6 | O16: 2540 | P16: 13 | Q16: 37.1
A17: Nov | B17: 150 | C17: 42.1 | D17: 5.6 | E17: 6121 | F17: 50 | G17: 5.4 | H17: 46 | L17: Nov | M17: 5.8 | N17: 4.8 | O17: 6121.2 | P17: 4.8 | Q17: 46.4
A18: Dec | B18: 150 | C18: 47.5 | D18: 6.1 | E18: 6370 | F18: 50 | G18: 4.9 | H18: 21 | L18: Dec | M18: 12.3 | N18: 6.9 | O18: 6370.8 | P18: 3.8 | Q18: 8.7
L19: Annual | M19: =AVERAGE(M7:M18) -> 34.24166667 | O19: =MAX(O7:O18) -> 6370.8 | P19: =AVERAGE(P7:P18) -> 9.108333333 | Q19: =MAX(Q7:Q18) -> 46.4
K21: =+A6 -> 2021 | L21: mg/Nm3 | M21: 95%ile 10-min avg maximum | N21: Monthly CO 10-min avg mean | O21: 10-min avg maximum | P21: Monthly daily mean | Q21: Monthly daily maximum
K22: A2 | L22: Jan | M22: 8.2 | N22: 7 | O22: 1142 | P22: 6 | Q22: 17
L23: Feb | M23: 14.8 | N23: 9 | O23: 4494 | P23: 7 | Q23: 17
L24: Mar | M24: 35 | N24: 11 | O24: 29.5 | P24: 5 | Q24: 11
L25: Apr | M25: 23.8 | N25: 7 | O25: 2226 | P25: 7 | Q25: 21 | R25: 21
L26: May | M26: 49.6 | N26: 11 | O26: 1771 | P26: 9 | Q26: 29
L27: Jun | M27: 15.4 | N27: 9 | O27: 4267 | P27: 9 | Q27: 38
L28: Jul | M28: 41.6 | N28: 8 | O28: 1015 | P28: 8 | Q28: 18
L29: Aug | M29: 13.3 | N29: 6 | O29: 789 | P29: 5 | Q29: 13
L30: Sep | M30: 26.7 | N30: 9.5 | O30: 1417.3 | P30: 7.2 | Q30: 21.6
L31: Oct | M31: 14.7 | N31: 4.7 | O31: 932.4 | P31: 4.5 | Q31: 20.4
L32: Nov | M32: 11.9 | N32: 3.3 | O32: 421.2 | P32: 3 | Q32: 9.7
L33: Dec | M33: 2.9 | N33: 2.2 | O33: 518.6 | P33: 2.2 | Q33: 5.4
L34: Annual | M34: =AVERAGE(M22:M33) -> 21.49166667 | O34: =MAX(O22:O33) -> 4494 | P34: =AVERAGE(P22:P33) -> 6.075 | Q34: =MAX(Q22:Q33) -> 38
K36: =+A6 -> 2021 | L36: mg/Nm3 | M36: 95%ile 10-min avg maximum | N36: Monthly CO 10-min avg mean | O36: 10-min avg maximum | P36: Monthly daily mean | Q36: Monthly daily maximum
K37: A3 | L37: Jan | M37: 18.9 | N37: 5 | O37: 544 | P37: 5 | Q37: 12
L38: Feb | M38: 28.4 | N38: 6 | O38: 433 | P38: 5 | Q38: 12
L39: Mar | M39: 33.4 | N39: 8 | O39: 959 | P39: 6 | Q39: 16
L40: Apr | M40: 49.9 | N40: 8 | O40: 1142 | P40: 8 | Q40: 13
L41: May | M41: 37.6 | N41: 7 | O41: 1117 | P41: 6 | Q41: 17
L42: Jun | M42: 38 | N42: 6 | O42: 450 | P42: 7 | Q42: 16
L43: Jul | M43: 46.2 | N43: 9 | O43: 761 | P43: 9 | Q43: 20
L44: Aug | M44: 57.9 | N44: 11 | O44: 1535 | P44: 10 | Q44: 18
L45: Sep | M45: 40.6 | N45: 8.4 | O45: 781.8 | P45: 8.1 | Q45: 18
L46: Oct | M46: 30.4 | N46: 7.6 | O46: 1970.5 | P46: 7.7 | Q46: 24.3
L47: Nov | M47: 42.1 | N47: 8.9 | O47: 1204.5 | P47: 8.4 | Q47: 21.8
A48: Comments : | L48: Dec | M48: 47.5 | N48: 9.3 | O48: 782.6 | P48: 8.7 | Q48: 21.2
A49: Environment Agency explanatory note: The 10-minute average ELV is based on the “95th percentile”. In this case this means that 95% of the 10 minute averages in the relevant 24-hour period (i.e. 137) must be below 150 mg/Nm3, and 5% (i.e. 7) are allowed to be any value above 150 mg/Nm3. Whilst we expect operators to minimise CO emissions at all times, it is perfectly acceptable for the value of the maximum 10-minute average to be above 150 mg/Nm3, provided the 95th percentile ELV has been met for that period. | L49: Annual | M49: =AVERAGE(M37:M48) -> 39.24166667 | O49: =MAX(O37:O48) -> 1970.5 | P49: =AVERAGE(P37:P48) -> 7.408333333 | Q49: =MAX(Q37:Q48) -> 24.3
K51: =+A6 -> 2021 | L51: mg/Nm3 | M51: 95%ile 10-min avg maximum | N51: Monthly CO 10-min avg mean | O51: 10-min avg maximum | P51: Monthly daily mean | Q51: Monthly daily maximum
K52: A4 | L52: Jan
L53: Feb
L54: Mar
L55: Apr
L56: May
L57: Jun
L58: Jul
L59: Aug
L60: Sep
L61: Oct
L62: Nov
L63: Dec
L64: Annual | M64: =AVERAGE(M52:M63) ->  | O64: =MAX(O52:O63) -> 0 | P64: =AVERAGE(P52:P63) ->  | Q64: =MAX(Q52:Q63) -> 0
K66: =+A6 -> 2021 | L66: mg/Nm3 | M66: 95%ile 10-min avg maximum | N66: Monthly CO 10-min avg mean | O66: 10-min avg maximum | P66: Monthly daily mean | Q66: Monthly daily maximum
K67: A5 | L67: Jan
L68: Feb
L69: Mar
L70: Apr
L71: May
L72: Jun
L73: Jul
L74: Aug
L75: Sep
L76: Oct
L77: Nov
L78: Dec
L79: Annual | M79: =AVERAGE(M67:M78) ->  | O79: =MAX(O67:O78) -> 0 | P79: =AVERAGE(P67:P78) ->  | Q79: =MAX(Q67:Q78) -> 0

Sheet NH3
A1: =+'Cover Page'!$B$29 -> Annual Performance Report 2021 | E1: =+'Cover Page'!$B$33 -> Kent Enviropower Limited
A3: Monitoring of Ammnonia emissions | D3: Whole Installation | G3: See Notes in Cell Q3 | J3: =+A3 -> Monitoring of Ammnonia emissions | N3: Per Combustion Line | Q3: Notes:
Q4: User to add logic to complete Whole installation, Table A5:G18. From the data in Per Combustion Line, Table J6:O79, subject to No. of lines installed
A5: mg/Nm3 | B5: 1/2 Hourly Reference Periods | E5: Daily Reference Periods
A6: =+'Cover Page'!C39 -> 2021 | B6: 1/2 hourly NH3 ELV | C6: Monthly 1/2 hourly mean | D6: Highest 1/2 hourly maximum | E6: Daily NH3 ELV | F6: Monthly daily mean | G6: Highest daily maximum | J6: =+A6 -> 2021 | K6: mg/Nm3 | L6: Monthly 1/2 hourly mean | M6: Monthly 1/2 hourly maximum | N6: Monthly daily mean | O6: Monthly daily maximum
A7: Jan | B7: N/A | C7: N/A | D7: N/A | E7: 10 | F7: 0.53 | G7: 1.01 | J7: A1 | K7: Jan | L7: N/A | M7: N/A | N7: 0.76 | O7: 1.01
A8: Feb | B8: =+B7 -> N/A | C8: N/A | D8: N/A | E8: =+E7 -> 10 | F8: 0.57 | G8: 1.25 | K8: Feb | L8: N/A | M8: N/A | N8: 0.88 | O8: 1.25
A9: Mar | B9: N/A | C9: N/A | D9: N/A | E9: 10 | F9: 0.61 | G9: 1.7 | K9: Mar | L9: N/A | M9: N/A | N9: 0.93 | O9: 1.7 | Q9: Whole Installation table A5:G18:
A10: Apr | B10: N/A | C10: N/A | D10: N/A | E10: 10 | F10: 0.62 | G10: 1.22 | K10: Apr | L10: N/A | M10: N/A | N10: 1.04 | O10: 1.22 | Q10: Mean: for 1/2 hourly and daily periods calculate mean of values across all operational combustion lines for the month
A11: May | B11: N/A | C11: N/A | D11: N/A | E11: 10 | F11: 0.41 | G11: 0.96 | K11: May | L11: N/A | M11: N/A | N11: 0.36 | O11: 0.92
A12: Jun | B12: N/A | C12: N/A | D12: N/A | E12: 10 | F12: 0.37 | G12: 0.87 | K12: Jun | L12: N/A | M12: N/A | N12: 0.31 | O12: 0.65
A13: Jul | B13: N/A | C13: N/A | D13: N/A | E13: 10 | F13: 0.28 | G13: 1.95 | K13: Jul | L13: N/A | M13: N/A | N13: 0.31 | O13: 0.72 | Q13: Maximum: for 1/2 hourly and daily periods use the highest value across all operational combustion lines for the month
A14: Aug | B14: N/A | C14: N/A | D14: N/A | E14: 10 | F14: 0.23 | G14: 0.71 | K14: Aug | L14: N/A | M14: N/A | N14: 0.21 | O14: 0.42
A15: Sep | B15: N/A | C15: N/A | D15: N/A | E15: 10 | F15: 0.23 | G15: 0.9 | K15: Sep | L15: N/A | M15: N/A | N15: 0.2 | O15: 0.9
A16: Oct | B16: N/A | C16: N/A | D16: N/A | E16: 10 | F16: 0.26 | G16: 1 | K16: Oct | L16: N/A | M16: N/A | N16: 0.3 | O16: 0.7
A17: Nov | B17: N/A | C17: N/A | D17: N/A | E17: 10 | F17: 0.2 | G17: 0.8 | K17: Nov | L17: N/A | M17: N/A | N17: 0.2 | O17: 0.8
A18: Dec | B18: N/A | C18: N/A | D18: N/A | E18: 10 | F18: 0.16 | G18: 0.7 | K18: Dec | L18: N/A | M18: N/A | N18: 0.1 | O18: 0.4
K19: Annual | L19: =AVERAGE(L7:L18) ->  | M19: =MAX(M7:M18) -> 0 | N19: =AVERAGE(N7:N18) -> 0.4666666667 | O19: =MAX(O7:O18) -> 1.7
J21: =+A6 -> 2021 | K21: mg/Nm3 | L21: Monthly 1/2 hourly mean | M21: Monthly 1/2 hourly maximum | N21: Monthly daily mean | O21: Monthly daily maximum
J22: A2 | K22: Jan | L22: N/A | M22: N/A | N22: 0.22 | O22: 0.34
K23: Feb | L23: N/A | M23: N/A | N23: 0.25 | O23: 0.46
K24: Mar | L24: N/A | M24: N/A | N24: 0.22 | O24: 0.26
K25: Apr | L25: N/A | M25: N/A | N25: 0.23 | O25: 0.46
K26: May | L26: N/A | M26: N/A | N26: 0.26 | O26: 0.41
K27: Jun | L27: N/A | M27: N/A | N27: 0.2 | O27: 0.87
K28: Jul | L28: N/A | M28: N/A | N28: 0.22 | O28: 0.52
K29: Aug | L29: N/A | M29: N/A | N29: 0.19 | O29: 0.46
K30: Sep | L30: N/A | M30: N/A | N30: 0.2 | O30: 0.5
K31: Oct | L31: N/A | M31: N/A | N31: 0.2 | O31: 0.5
K32: Nov | L32: N/A | M32: N/A | N32: 0.1 | O32: 0.3
K33: Dec | L33: N/A | M33: N/A | N33: 0.1 | O33: 0.2
K34: Annual | L34: =AVERAGE(L22:L33) ->  | M34: =MAX(M22:M33) -> 0 | N34: =AVERAGE(N22:N33) -> 0.1991666667 | O34: =MAX(O22:O33) -> 0.87
J36: =+A6 -> 2021 | K36: mg/Nm3 | L36: Monthly 1/2 hourly mean | M36: Monthly 1/2 hourly maximum | N36: Monthly daily mean | O36: Monthly daily maximum
J37: A3 | K37: Jan | L37: N/A | M37: N/A | N37: 0.62 | O37: 0.89
K38: Feb | L38: N/A | M38: N/A | N38: 0.58 | O38: 0.86
K39: Mar | L39: N/A | M39: N/A | N39: 0.68 | O39: 0.97
K40: Apr | L40: N/A | M40: N/A | N40: 0.59 | O40: 0.76
K41: May | L41: N/A | M41: N/A | N41: 0.63 | O41: 0.96
K42: Jun | L42: N/A | M42: N/A | N42: 0.62 | O42: 0.78
K43: Jul | L43: N/A | M43: N/A | N43: 0.32 | O43: 0.71
K44: Aug | L44: N/A | M44: N/A | N44: 0.31 | O44: 0.71
K45: Sep | L45: N/A | M45: N/A | N45: 0.3 | O45: 0.6
K46: Oct | L46: N/A | M46: N/A | N46: 0.3 | O46: 1
K47: Nov | L47: N/A | M47: N/A | N47: 0.3 | O47: 0.7
A48: Comments : | K48: Dec | L48: N/A | M48: N/A | N48: 0.3 | O48: 0.7
A49: An indicated ELV value of zero in the table above means that no ammonia limit is set in the permit. | K49: Annual | L49: =AVERAGE(L37:L48) ->  | M49: =MAX(M37:M48) -> 0 | N49: =AVERAGE(N37:N48) -> 0.4625 | O49: =MAX(O37:O48) -> 1
J51: =+A6 -> 2021 | K51: mg/Nm3 | L51: Monthly 1/2 hourly mean | M51: Monthly 1/2 hourly maximum | N51: Monthly daily mean | O51: Monthly daily maximum
J52: A4 | K52: Jan
K53: Feb
K54: Mar
K55: Apr
K56: May
K57: Jun
K58: Jul
K59: Aug
K60: Sep
K61: Oct
K62: Nov
K63: Dec
K64: Annual | L64: =AVERAGE(L52:L63) ->  | M64: =MAX(M52:M63) -> 0 | N64: =AVERAGE(N52:N63) ->  | O64: =MAX(O52:O63) -> 0
J66: =+A6 -> 2021 | K66: mg/Nm3 | L66: Monthly 1/2 hourly mean | M66: Monthly 1/2 hourly maximum | N66: Monthly daily mean | O66: Monthly daily maximum
J67: A5 | K67: Jan
K68: Feb
K69: Mar
K70: Apr
K71: May
K72: Jun
K73: Jul
K74: Aug
K75: Sep
K76: Oct
K77: Nov
K78: Dec
K79: Annual | L79: =AVERAGE(L67:L78) ->  | M79: =MAX(M67:M78) -> 0 | N79: =AVERAGE(N67:N78) ->  | O79: =MAX(O67:O78) -> 0
